Workbook

Sheet Shopping List 1
A1: My Shopping List
I2: Coupons | N2: Compare > | O2: 24 | P2: 11.97 | Q2: =P2/O2 -> 0.49875
A3: Store | B3: Location | C3: Qty | D3: Item | E3: Brand | F3: Note 1 | G3: Note 2 | H3: Info | I3: Source | J3: Value | K3: # | L3: Expires | M3: Type | N3: Unit | O3: Count | P3: Price | Q3: P/Unit
A4: Wal-Mart | B4: Pain Relievers | D4: Acetaminophen | E4: Equate | F4: Tablets | G4: 2-pack | M4: Reg | N4: Tablet | O4: 200 | P4: 4 | Q4: =P4/O4 -> 0.02
A5: Wal-Mart | B5: Pain Relievers | D5: Acetaminophen | E5: Equate | F5: Tablets | G5: With sleep aid | M5: Reg | N5: Tablet | O5: 80 | P5: 4.98 | Q5: 0.06225
A6: Wal-Mart | B6: Shaving | D6: After shave gel | E6: Gillette | F6: Stuart | M6: Reg | N6: Bottle | O6: 1 | P6: 1.97 | Q6: 1.97
A7: Wal-Mart | B7: DIY | D7: Air filter | E7: Filtrete | F7: 18 X 24 | M7: Reg | N7: Filter | O7: 1 | P7: 8.88 | Q7: 8.88
A8: Wal-Mart | B8: Allergy Medicine | D8: Allergy tabs | E8: Equate | F8: Compare to Claritin | M8: Reg | N8: Tablet | O8: 60 | P8: 7.42 | Q8: 0.1236666667
A9: Wal-Mart | B9: Paper/Plastic/Foil | D9: Aluminum foil | E9: Great Value | F9: Regular | M9: Reg | N9: SF | O9: 200 | P9: 6.48 | Q9: 0.0324
A10: Publix | B10: Digestive Health | D10: Antacid | E10: Publix | F10: Omeprazole | M10: BOGO | N10: Tablet | O10: 28 | P10: 9.89 | Q10: 0.3532142857
A11: Walgreens | B11: Digestive Health | D11: Antacid | E11: Walgreens | F11: Omeprazole | M11: Sale | N11: Tablet | O11: 42 | P11: 12.99 | Q11: 0.3092857143
A12: Wal-Mart | B12: Digestive Health | D12: Antacid | E12: Equate | F12: Chewable | G12: Comp to Rolaids | M12: Reg | N12: Tablet | O12: 100 | P12: 2.68 | Q12: 0.0268
A13: Wal-Mart | B13: Digestive Health | D13: Antacid | E13: Equate | F13: Omeprazole | M13: Reg | N13: Tablet | O13: 42 | P13: 15.97 | Q13: 0.3802380952
A14: Wal-Mart | B14: First Aid | D14: Antibiotic cream | E14: Equate | M14: Reg | N14: Tube | O14: 1 | P14: 3.78 | Q14: 3.78
A15: Wal-Mart | B15: Digestive Health | D15: Anti-gas | E15: Equate | F15: Tablets | G15: Comp to Gas-X | M15: Reg | N15: Tablet | O15: 48 | P15: 5.48 | Q15: 0.1141666667
A16: Publix | B16: Produce | D16: Apples | E16: Publix | F16: Sliced | G16: Variety | M16: Reg | N16: Bag | O16: 1 | P16: 3.29 | Q16: 3.29
A17: Wal-Mart | B17: Produce | D17: Apples | E17: Great Value | F17: Red delicious | G17: Tall; dark red | M17: Reg | N17: Lb. | O17: 1 | P17: 1.67 | Q17: 1.67
A18: Publix | B18: 3 | D18: Asparagus tips | E18: Del Monte | F18: Canned | G18: Small | M18: Reg | N18: Can | O18: 8 | P18: 1.79 | Q18: 0.22375
A19: Publix | B19: Produce | D19: Asparagus tips | E19: Publix | F19: Fresh | M19: Sale | N19: Bunch | O19: 1 | P19: 1.79 | Q19: 1.79
A20: Wal-Mart | B20: Packaged Meat | D20: Bacon | E20: Jennie-O | F20: Turkey | G20: 12 oz. | M20: Reg | N20: Oz | O20: 12 | P20: 2.22 | Q20: 0.185
A21: Publix | B21: 12 | C21: 2 | D21: Bagels | E21: Thomas | F21: Cin raisin | M21: BOGO | N21: Each | O21: 6 | P21: =4.49/2 -> 2.245 | Q21: 0.3741666667
A22: Wal-Mart | B22: Bread | D22: Bagels | E22: Thomas | F22: Cin raisin | M22: Reg | N22: Bag | O22: 1 | P22: 2.98 | Q22: 2.98
A23: Wal-Mart | B23: 15 | D23: Baking soda | E23: Arm & Hammer | F23: Small | M23: Reg | N23: Lb. | O23: 2 | P23: 1.18 | Q23: 0.59
A24: Wal-Mart | B24: Produce | D24: Bananas | E24: Great Value | M24: Reg | N24: Lb. | O24: 1 | P24: 0.59 | Q24: 0.59
A25: Wal-Mart | B25: Bath & Body | D25: Bar soap | E25: Coast | F25: 8-Pack | M25: Reg | N25: Bar | O25: 8 | P25: 2.98 | Q25: 0.3725
A26: Wal-Mart | B26: Bathroom | D26: Bathroom cleaner | E26: Comet | F26: Trigger spray | M26: Reg | N26: Oz | O26: 32 | P26: 2.84 | Q26: 0.08875
A27: Wal-Mart | B27: Photo Center | D27: Batteries | E27: Duracell | F27: Size 9A | G27: 4-Pack | M27: Reg | N27: Battery | O27: 4 | P27: 11.24 | Q27: 2.81
A28: Wal-Mart | B28: Photo Center | D28: Batteries | E28: Duracell | F28: Size AA | G28: 16-Pack | M28: Reg | N28: Battery | O28: 16 | P28: 9.97 | Q28: 0.623125
A29: Wal-Mart | B29: Photo Center | D29: Batteries | E29: Duracell | F29: Size AAA | G29: 16-Pack | H29: Coupon | I29: Cut | J29: 3.00/2 | K29: 1 | L29: 2013-12-31 | M29: Reg | N29: Battery | O29: 16 | P29: 9.97 | Q29: 0.623125
A30: Wal-Mart | B30: Photo Center | D30: Batteries | E30: Duracell | F30: Size C | G30: 8-Pack | M30: Reg | N30: Battery | O30: 8 | P30: 11.24 | Q30: 1.405
A31: Wal-Mart | B31: Photo Center | D31: Batteries | E31: Duracell | F31: Size D | G31: 8-Pack | M31: Reg | N31: Battery | O31: 8 | P31: 11.24 | Q31: 1.405
A32: Publix | B32: 7 | D32: BBQ sauce | E32: Kraft | F32: Original flavor | M32: BOGO | N32: Oz | O32: 27 | P32: =2.79/2 -> 1.395 | Q32: 0.05166666667
A33: Wal-Mart | B33: 8 | D33: BBQ sauce | E33: Kraft | F33: Regular | M33: Reg | N33: Oz | O33: 40 | P33: 2.47 | Q33: 0.06175
A34: Wal-Mart | B34: Chips & Nuts | D34: Bean dip | E34: Frito Lay | M34: Reg | N34: Can | O34: 1 | P34: 2.48 | Q34: 2.48
A35: Publix | B35: 2 | D35: Beans | E35: Old El Paso | F35: Refried | G35: Vegetarian | M35: Sale | N35: Oz | O35: 16 | P35: 1.25 | Q35: 0.078125
A36: Publix | B36: 3 | D36: Beans | E36: Del Monte | F36: French style | G36: Large | M36: BOGO | N36: Oz | O36: 14.5 | P36: =1.39/2 -> 0.695 | Q36: =P36/O36 -> 0.04793103448
A37: Publix | B37: 3 | D37: Beans | E37: Publix | F37: Kidney | G37: Large, dark | M37: Reg | N37: Oz | O37: 15.5 | P37: 0.89 | Q37: 0.05741935484
A38: Publix | B38: 3 | D38: Beans | E38: Publix | F38: Lima | G38: Small | M38: Reg | N38: Oz | O38: 8 | P38: 0.77 | Q38: 0.09625
A39: Publix | B39: 3 | D39: Beans | E39: Publix | F39: Pinto | G39: Large | M39: Reg | N39: Oz | O39: 15.5 | P39: 0.91 | Q39: 0.05870967742
A40: Wal-Mart | B40: 2 | D40: Beans | E40: Old El Paso | F40: Refried | G40: Vegetarian | M40: Reg | N40: Oz | O40: 16 | P40: 1.25 | Q40: 0.078125
A41: Wal-Mart | B41: 10 | D41: Beans | E41: Bush | F41: Vegetarian | M41: Reg | N41: Oz | O41: 16 | P41: 1.38 | Q41: 0.08625
A42: Wal-Mart | B42: 10 | D42: Beans | E42: Del Monte | F42: Three bean salad | G42: Large | M42: Reg | N42: Oz | O42: 15 | P42: 1.49 | Q42: 0.09933333333
A43: Wal-Mart | B43: 10 | D43: Beets | E43: Del Monte | F43: Pickled | G43: Jar | M43: Reg | N43: Oz | O43: 16 | P43: 1.44 | Q43: 0.09
A44: Publix | B44: 11 | D44: Bleach | E44: Publix | F44: Small | M44: Reg | N44: Bottle | O44: 1 | P44: 1.67 | Q44: 1.67
A45: Wal-Mart | B45: Laundry | D45: Bleach | E45: Clorox | F45: Color-safe | G45: Booster cubes | M45: Reg | N45: Oz | O45: 32 | P45: 9.98 | Q45: 0.311875
A46: Wal-Mart | B46: Bath & Body | D46: Body wash | E46: Equate | F46: Moisturizing | G46: Large (yellow) | M46: Reg | N46: Bottle | O46: 15 | P46: 2.74 | Q46: 0.1826666667
A47: Publix | B47: 12 | D47: Bread | E47: Arnold | F47: Sandwich | G47: 12-grain | M47: BOGO | N47: Loaf | O47: 1 | P47: =4.29/2 -> 2.145 | Q47: 2.145
A48: Wal-Mart | B48: Bread | D48: Bread | E48: Arnold | F48: Sandwich | G48: 12-grain | M48: Reg | N48: Loaf | O48: 1 | P48: 2.98 | Q48: 2.98
A49: Wal-Mart | B49: 16 | D49: Bread mix | E49: Pillsbury | F49: Pumpkin | G49: Or spice | M49: Reg | N49: Box | O49: 1 | P49: 1.98 | Q49: 1.98
A50: Wal-Mart | B50: 15 | D50: Broth | E50: Swanson | F50: Chicken | G50: Canned | M50: Reg | N50: Oz | O50: 16 | P50: 0.96 | Q50: 0.06
A51: Wal-Mart | B51: 15 | D51: Brown sugar | E51: Great Value | M51: Reg | N51: Oz | O51: 32 | P51: 2.37 | Q51: 0.0740625
A52: Publix | B52: 7 | D52: Brownie mix | E52: Duncan Hines | F52: Deluxe | G52: With nuts | M52: BOGO | N52: Box | O52: 1 | P52: =2.79/2 -> 1.395 | Q52: 1.395
A53: Wal-Mart | B53: 15 | D53: Brownie mix | E53: Duncan Hines | F53: Deluxe | G53: With nuts | M53: Reg | N53: Box | O53: 1 | P53: 1.54 | Q53: 1.54
A54: Wal-Mart | B54: Bread | D54: Buns | E54: Sara Lee | F54: Hamburger | M54: Reg | N54: Sack | O54: 1 | P54: 1.98 | Q54: 1.98
A55: Wal-Mart | B55: Bread | D55: Buns | E55: Sara Lee | F55: Hot dog | M55: Reg | N55: Sack | O55: 1 | P55: 1.98 | Q55: 1.98
A56: Publix | B56: 7 | D56: Cake icing | E56: Duncan Hines | F56: Classic chocolate | G56: Cream cheese | M56: Sale | N56: Can | O56: 1 | P56: 1.5 | Q56: 1.5
A57: Wal-Mart | B57: 15 | D57: Cake icing | E57: Duncan Hines | F57: Assorted | M57: Reg | N57: Can | O57: 1 | P57: 1.54 | Q57: 1.54
A58: Publix | B58: 7 | D58: Cake mix | E58: Duncan Hines | F58: Chocolate | G58: Spice | M58: BOGO | N58: Box | O58: 1 | P58: =1.99/2 -> 0.995 | Q58: 0.995
A59: Wal-Mart | B59: 15 | D59: Cake mix | E59: Duncan Hines | F59: Deluxe | G59: Assorted | M59: Reg | N59: Box | O59: 1 | P59: 1.24 | Q59: 1.24
A60: Publix | B60: 6 | D60: Candy | E60: Hershey's | F60: Toffee | G60: Nuggets (10.5 oz) | M60: BOGO | N60: Bag | O60: 1 | P60: =3.99/2 -> 1.995 | Q60: 1.995
A61: Publix | B61: 6 | D61: Candy | E61: Publix | F61: Jelly beans | M61: Reg | N61: Bag | O61: 1 | P61: 1.67 | Q61: 1.67
A62: Wal-Mart | B62: Candy & Gum | D62: Candy | E62: Hersheys | F62: Full-size bars | G62: Almonds | M62: Reg | N62: Bar | O62: 6 | P62: 3.94 | Q62: 0.6566666667
A63: Wal-Mart | B63: Candy & Gum | D63: Candy | E63: Jolly Rancher | F63: Filled | M63: Reg | N63: Oz | O63: 13 | P63: 2.98 | Q63: 0.2292307692
A64: Wal-Mart | B64: Candy & Gum | D64: Candy | E64: Nestle | F64: Crunch | G64: Small bars | M64: Reg | N64: Bar | O64: 6 | P64: 3.94 | Q64: 0.6566666667
A65: Wal-Mart | B65: Candy & Gum | D65: Candy | E65: Twillizers | M65: Reg | N65: Oz | O65: 16 | P65: 1.88 | Q65: 0.1175
A66: Publix | B66: Produce | D66: Cantaloupe | E66: Publix | F66: Cut up | M66: Reg | N66: Lb. | O66: 1 | P66: 3.29 | Q66: 3.29
A67: Wal-Mart | B67: Carpet & Floor | D67: Carpet cleaner | E67: Resolve | F67: Pet | M67: Reg | N67: Can | O67: 1 | P67: 4.23 | Q67: 4.23
A68: Wal-Mart | B68: Carpet & Floor | D68: Carpet deodorizer | E68: Arm & Hammer | M68: Reg | N68: Oz | O68: 30 | P68: 1.54 | Q68: =P68/O68 -> 0.05133333333
A69: Publix | B69: Produce | D69: Carrots | E69: Publix | F69: Snack packs | M69: Reg | N69: Bag | O69: 1 | P69: 2.29 | Q69: 2.29
A70: Publix | B70: Produce | D70: Celery | E70: Publix | F70: Snack packs | M70: Reg | N70: Tub | O70: 1 | P70: 2 | Q70: 2
A71: Wal-Mart | B71: Electronics | D71: Cell phone | E71: TracFone | M71: Reg | N71: Each | O71: 1 | P71: 9.88 | Q71: 9.88
A72: Wal-Mart | B72: 14 | D72: Cereal | E72: Cheerios | F72: Honey nut | M72: Reg | N72: Oz | O72: 21.6 | P72: 3.98 | Q72: 0.1842592593
A73: Publix | B73: Cheese | D73: Cheese | E73: Publix | F73: Shredded | G73: Sharp cheddar 2% | M73: Sale | N73: Oz | O73: 16 | P73: 4.99 | Q73: 0.311875
A74: Publix | B74: Cheese | D74: Cheese | E74: Publix | F74: Sliced (no plastic) | G74: American | M74: Sale | N74: Oz | O74: 16 | P74: 3.5 | Q74: 0.21875
A75: Publix | B75: Cheese | D75: Cheese | E75: Publix | F75: Sliced (no plastic) | G75: Swiss | M75: Sale | N75: Oz | O75: 16 | P75: 4.49 | Q75: 0.280625
A76: Wal-Mart | B76: 11 | D76: Cheese | E76: Great Value | F76: Grated | G76: Parmesan | M76: Reg | N76: Oz | O76: 8 | P76: 2.64 | Q76: 0.33
A77: Wal-Mart | B77: Dairy | D77: Cheese | E77: Great Value | F77: Ricotta | G77: Large | M77: Reg | N77: Oz | O77: 15 | P77: 1.94 | Q77: 0.1293333333
A78: Wal-Mart | B78: Dairy | D78: Cheese | E78: Kraft Simply | F78: Cottage | M78: Reg | N78: Oz | O78: 16 | P78: 1.84 | Q78: 0.115
A79: Publix | B79: 3 | D79: Cheese | E79: Velveeta | F79: Block | G79: American - 2% | M79: BOGO | N79: Lb. | O79: 1 | P79: =4.39/2 -> 2.195 | Q79: 2.195
A80: Wal-Mart | B80: 12 | D80: Cheese | E80: Velveeta | F80: Block | G80: American - 2% | M80: Reg | N80: Lb. | O80: 1 | P80: 3.83 | Q80: 3.83
A81: Publix | B81: 15 | D81: Cheesecake | E81: Sara Lee | F81: Creamy or New York | G81: Frozen | M81: Sale | N81: Box | O81: 1 | P81: =6.79/2 -> 3.395 | Q81: 3.395
A82: Wal-Mart | B82: 2 | D82: Cheesecake | E82: Sara Lee | F82: Creamy or New York | G82: Frozen | M82: Reg | N82: Box | O82: 1 | P82: 7 | Q82: 7
A83: Publix | B83: Fresh Meat | D83: Chicken | E83: Perdue | F83: Breaded tenders | G83: Fresh (MS) | M83: BOGO | N83: Tray | O83: 1 | P83: =4.39/2 -> 2.195 | Q83: 2.195
A84: Publix | B84: Fresh Meat | D84: Chicken | E84: Perdue | F84: Fresh | G84: Perfect portions | M84: Reg | N84: Piece | O84: 5 | P84: 8.99 | Q84: 1.798
A85: Wal-Mart | B85: 11 | D85: Chicken | E85: Great Value | F85: Canned | M85: Reg | N85: Oz | O85: 5 | P85: 0.98 | Q85: 0.196
A86: Wal-Mart | B86: Deli | D86: Chicken | E86: Perdue | F86: Breaded tenders (small) | G86: Fresh (MS) | M86: Reg | N86: Tray | O86: 1 | P86: 2.98 | Q86: 2.98
A87: Wal-Mart | B87: Fresh Meat | D87: Chicken | E87: Perdue | F87: Fresh | G87: Perfect portions | M87: Reg | N87: Piece | O87: 5 | P87: 6.98 | Q87: 1.396
A88: Wal-Mart | B88: 11 | D88: Chili mix | E88: McCormick | F88: BROWN BAG | M88: Reg | N88: Box | O88: 1 | P88: 0.98 | Q88: 0.98
A89: Wal-Mart | B89: 7 | D89: Coffee | E89: Maxwell House | F89: Instant | M89: Reg | N89: Oz | O89: 8 | P89: 5.48 | Q89: 0.685
A90: Wal-Mart | B90: Cold Medicine | D90: Cold medicine | E90: Dayquil | M90: Reg | N90: Tablet | O90: 24 | P90: 2.34 | Q90: 0.0975
A91: Publix | B91: Deli | D91: Coleslaw | E91: Publix | F91: Smallest | G91: Shredded | M91: Reg | N91: Oz | O91: 8 | P91: 1.69 | Q91: 0.21125
A92: Wal-Mart | B92: Office | D92: Computer paper | E92: Georgia Pacific | F92: Look for 88 brightness | M92: Reg | N92: Sheet | O92: 500 | P92: 2.97 | Q92: 0.00594
A93: Publix | B93: 4 | D93: Cookies | E93: Keebler | F93: Assorted | M93: BOGO | N93: Tray | O93: 1 | P93: =3.49/2 -> 1.745 | Q93: 1.745
A94: Publix | B94: 4 | D94: Cookies | E94: Nabisco | F94: Assorted | M94: BOGO | N94: Tray | O94: 1 | Q94: 0
A95: Wal-Mart | B95: Cookies | D95: Cookies | E95: Great Value | F95: Varies | M95: Reg | N95: Box | O95: 1 | P95: Varies
A96: Wal-Mart | B96: Cookies | D96: Cookies | E96: Nabisco | F96: Fig newtons | G96: And other | M96: Reg | N96: Tray | O96: 1 | P96: 3.68 | Q96: =P96/O96 -> 3.68
A97: Wal-Mart | B97: 15 | D97: Cooking oil | E97: Great Value | F97: Canola | M97: Reg | N97: Oz | O97: 48 | P97: 2.98 | Q97: 0.06208333333
A98: Publix | B98: 3 | D98: Corn | E98: Del Monte | F98: Canned | G98: Large | M98: BOGO | N98: Oz | O98: 15.25 | P98: =1.39/2 -> 0.695 | Q98: 0.04557377049
A99: Wal-Mart | B99: 4 | D99: Corn | E99: Great Value | F99: On the cob | G99: Frozen | M99: Reg | N99: Cob | O99: 6 | P99: 0.78 | Q99: 0.13
A100: Wal-Mart | B100: Chips & Nuts | C100: 2 | D100: Corn chips | E100: Frito Lay | F100: Fritos | G100: BBQ | M100: Reg | N100: Oz | O100: 10.5 | P100: 2.48 | Q100: 0.2361904762
A101: Wal-Mart | B101: Chips & Nuts | D101: Corn chips | E101: Frito Lay | F101: Scoops | M101: Reg | N101: Oz | O101: 14 | P101: 3.98 | Q101: 0.2842857143
A102: Wal-Mart | B102: Chips & Nuts | D102: Corn chips | E102: Great Value | F102: Scoops | M102: Reg | N102: Oz | O102: 9.25 | P102: 1.98 | Q102: 0.2140540541
A103: Wal-Mart | B103: 15 | D103: Corn starch | E103: Great Value | F103: Regular | M103: Reg | N103: Oz | O103: 16 | P103: 1 | Q103: 0.0625
A104: Publix | B104: 4 | D104: Crackers | E104: Lance | F104: Various | M104: BOGO | N104: Pack | O104: 8 | P104: =2.95/2 -> 1.475 | Q104: 0.184375
A105: Publix | B105: 4 | D105: Crackers | E105: Nabisco | F105: Graham | G105: Cinnamon | M105: BOGO | N105: Box | O105: 1 | P105: =4.19/2 -> 2.095 | Q105: 2.095
A106: Publix | B106: 4 | D106: Crackers | E106: Nabisco | F106: Ritz | G106: Bits | M106: BOGO | N106: Box | O106: 1 | P106: =3.79/2 -> 1.895 | Q106: 1.895
A107: Publix | B107: 4 | D107: Crackers | E107: Nabisco | F107: Ritz | G107: Grab & Go | M107: BOGO | N107: Box | O107: 1 | P107: =3.79/2 -> 1.895 | Q107: 1.895
A108: Publix | B108: 4 | D108: Crackers | E108: Nabisco | F108: Triscuit | G108: Varies | M108: BOGO | N108: Box | O108: 1 | P108: =2.5/2 -> 1.25 | Q108: 1.25
A109: Publix | B109: 4 | D109: Crackers | E109: Nabisco | F109: Wheat Thins | G109: Varies | M109: BOGO | N109: Box | O109: 1 | P109: =2.5/2 -> 1.25 | Q109: 1.25
A110: Publix | B110: 4 | D110: Crackers | E110: Pepperidge Farm | F110: Fish-shaped | G110: Assorted | M110: BOGO | N110: Box | O110: 1 | P110: =2.39/2 -> 1.195 | Q110: 1.195
A111: Wal-Mart | B111: Crackers | D111: Crackers | E111: Lance | F111: Various | M111: Reg | N111: Pack | O111: 8 | P111: 2.5 | Q111: 0.3125
A112: Wal-Mart | B112: Crackers | D112: Crackers | E112: Nabisco | F112: Ritz | G112: Bits | M112: Reg | N112: Box | O112: 1 | P112: 2.5 | Q112: 2.5
A113: Wal-Mart | B113: Crackers | D113: Crackers | E113: Nabisco | F113: Ritz | G113: Grab & Go | M113: Reg | N113: Box | O113: 1 | P113: 2.5 | Q113: 2.5
A114: Wal-Mart | B114: 8 | C114: 1 | D114: Croutons | E114: Rothbury | F114: Seasoned | M114: Reg | N114: Bag | O114: 1 | P114: 1 | Q114: 1
A115: Wal-Mart | B115: Produce | D115: Cucumber | E115: Great Value | M115: Reg | N115: Each | O115: 1 | P115: 0.72 | Q115: 0.72
A116: Wal-Mart | B116: Bath & Body | D116: Deodorant/AP | E116: Secret | M116: Reg | N116: Each | O116: 1 | Q116: 0
A117: Wal-Mart | B117: Men's Grooming | D117: Deodorant/AP | E117: Speed Stick | F117: Fresh Rush | M117: Reg | N117: Tube | O117: 1 | P117: 2.97 | Q117: 2.97
A118: Publix | B118: 11 | D118: Dish soap | E118: Palmolive | F118: Anti-bacterial | M118: BOGO | N118: Oz | O118: 25 | P118: =3.49/2 -> 1.745 | Q118: 0.0698
A119: Wal-Mart | B119: Kitchen | D119: Dish soap | E119: Palmolive | F119: Anti-bacterial | G119: Refill | M119: Reg | N119: Oz | O119: 50 | P119: 4.86 | Q119: 0.0972
A120: Wal-Mart | B120: Kitchen | D120: Dishwasher dryer | E120: Jet Dry | M120: Reg | N120: Oz | O120: 8.45 | P120: 3.57 | Q120: 0.4224852071
A121: Wal-Mart | B121: Kitchen | D121: Dishwasher soap | E121: Finish | F121: Packets | M121: Reg | N121: Packet | O121: 85 | P121: 15.36 | Q121: 0.1807058824
A122: Wal-Mart | B122: Surface Care | D122: Disinfectant spray | E122: Great Value | F122: Linen scent | G122: Indented lid | M122: Reg | N122: Can | O122: 1 | P122: 2.48 | Q122: 2.48
A123: Wal-Mart | B123: Surface Care | D123: Disinfectant spray | E123: Lysol | F123: Small | M123: Reg | N123: Can | O123: 12.5 | P123: 4.22 | Q123: 0.3376
A124: Publix | B124: 11 | D124: Disinfectant wipes | E124: Lysol | F124: Single | M124: BOGO | N124: Tub | O124: 1 | P124: =4.89/2 -> 2.445 | Q124: 2.445
A125: Target | B125: Surface Care | C125: 1 | D125: Disinfectant wipes | E125: Clorox | F125: Greenwise | G125: 3-Pack (M's work) | M125: Reg | N125: Tub | O125: 3 | P125: 5.99 | Q125: 1.996666667
A126: Wal-Mart | B126: Surface Care | D126: Disinfectant wipes | E126: Lysol | F126: 3-pack | M126: Reg | N126: Tub | O126: 3 | P126: 9.97 | Q126: 3.323333333
A127: Wal-Mart | B127: Drain Care | D127: Disposal cleaner | E127: Disposer Care | F127: 4-Pack | M127: Reg | N127: Packet | O127: 4 | P127: 2.84 | Q127: 0.71
A128: Publix | B128: 10 | D128: Dog biscuits | E128: Milk Bone | F128: Regular | G128: Small 60 oz. | M128: BOGO | N128: Lb. | O128: =60/16 -> 3.75 | P128: =6.99/2 -> 3.495 | Q128: =P128/O128 -> 0.932
A129: Target | B129: Pet | D129: Dog biscuits | E129: Milk Bone | F129: Regular | G129: Large box | M129: Reg | N129: Lb. | O129: 7 | P129: 9.29 | Q129: 1.327142857
A130: Wal-Mart | B130: Pet | D130: Dog biscuits | E130: Milk Bone | F130: Regular | G130: Large box | M130: Reg | N130: Lb. | O130: 7 | P130: 9.84 | Q130: 1.405714286
A131: Publix | B131: Pet | D131: Dog chews | E131: Dentastix | M131: Reg | N131: Each | O131: 25 | P131: 8.46 | Q131: 0.3384
A132: Publix | B132: 10 | D132: Dog food | E132: Iam's | F132: Mini-chunks | G132: Regular size | M132: Sale | N132: Lb. | O132: 17.5 | P132: 16.99 | Q132: 0.9708571429
A133: Target | B133: Pet | D133: Dog food | E133: Iam's | F133: Mini-chunks | G133: Regular size | M133: Sale | N133: Lb. | O133: 17.5 | P133: 16 | Q133: 0.9142857143
A134: Wal-Mart | B134: Pet | C134: 1 | D134: Dog food | E134: Iam's | F134: Mini-chunks | G134: Regular size | M134: Reg | N134: Lb. | O134: 17.5 | P134: 17.48 | Q134: 0.9988571429
A135: Wal-Mart | B135: Pet | D135: Dog shampoo | E135: Hartz | F135: Regular | M135: Reg | N135: Oz | O135: 18 | P135: 2.97 | Q135: 0.165
A136: Wal-Mart | B136: DIY | D136: Door air stops | M136: Reg
A137: Wal-Mart | B137: Drain Care | D137: Drain cleaner | E137: Drano | F137: Liquid | G137: Max Gel | M137: Reg | N137: Oz | O137: 80 | P137: 6.98 | Q137: 0.08725
A138: Target | B138: Beverages | D138: Drink mix | E138: Country Time | F138: Lemonade | G138: Bulk | M138: Reg | N138: Oz | O138: 19 | P138: 2.04 | Q138: 0.1073684211
A139: Wal-Mart | B139: Surface Care | D139: Duster refills | E139: Swiffer | M139: Reg | N139: Duster | O139: 6 | P139: 7.97 | Q139: 1.328333333
A140: Wal-Mart | B140: Ear Care | D140: Ear wax kit | E140: Murine | F140: Mary | M140: Reg | N140: Kit | O140: 1 | P140: 5.83 | Q140: 5.83
A141: Wal-Mart | B141: Eggs | D141: Eggs | E141: Great Value | F141: Large | G141: Dozen | M141: Reg | N141: Carton | O141: 1 | P141: 1.98 | Q141: 1.98
A142: Publix | B142: 12 | D142: English muffins | E142: Thomas | F142: Plain | M142: BOGO | N142: Each | O142: 6 | P142: =3.99/2 -> 1.995 | Q142: 0.3325
A143: Wal-Mart | B143: Eye Care | D143: Eye drops | E143: Equate | M143: Reg | N143: Oz | O143: 0.5 | P143: 0.97 | Q143: 1.94
A144: Wal-Mart | B144: Eye Care | D144: Eyeglass cleaner | E144: Zeiss | F144: Packets | M144: Reg | N144: Each | O144: 50 | P144: 2.97 | Q144: 0.0594
A145: Publix | B145: 14 | D145: Fish | E145: Mrs. Paul's | F145: Sandwich fillets | G145: Frozen | M145: BOGO | N145: Serving | O145: 6 | P145: =5.99/2 -> 2.995 | Q145: 0.4991666667
A146: Wal-Mart | B146: 3 | C146: 2 | D146: Fish | E146: Mrs. Paul's | F146: Sandwich fillets | G146: Frozen | M146: Reg | N146: Serving | O146: 6 | P146: 4.76 | Q146: 0.7933333333
A147: Wal-Mart | B147: 11 | D147: Fish | E147: Great Value | F147: Tuna | G147: Albacore | M147: Reg | N147: Oz | O147: 5 | P147: 1.42 | Q147: 0.284
A148: Wal-Mart | B148: Seafood | D148: Fish | E148: Great Value | F148: Frozen | G148: Cod, flounder | M148: Reg | N148: Serving | O148: 4 | P148: 4.48 | Q148: 1.12
A149: Wal-Mart | B149: Seafood | D149: Fish | E149: Great Value | F149: Frozen | G149: Salmon - 8-pack | M149: Reg | N149: Serving | O149: 8 | P149: 9.78 | Q149: 1.2225
A150: Wal-Mart | B150: 15 | D150: Flour | E150: Gold Medal | M150: Reg | N150: Lb. | O150: 2 | P150: 1.84 | Q150: 0.92
A151: Wal-Mart | B151: Paper/Plastic/Foil | D151: Foam cups | E151: Great Value | F151: 16 oz. | M151: Reg | N151: Cup | O151: 20 | P151: 0.95 | Q151: 0.0475
A152: Wal-Mart | B152: Paper/Plastic/Foil | D152: Foam plates | E152: Hefty | F152: Everyday | M152: Reg | N152: Plate | O152: 130 | P152: 3.97 | Q152: 0.03053846154
A153: Wal-Mart | B153: 2 | D153: French fries | E153: Alexia | F153: Waffle | G153: Frozen | M153: Reg | N153: Oz | O153: 20 | P153: 3.28 | Q153: 0.164
A154: Wal-Mart | B154: 2 | D154: French fries | E154: Ore-Ida | F154: Fast Food | G154: Frozen | M154: Reg | N154: Oz | O154: 26 | P154: 2.96 | Q154: 0.1138461538
A155: Publix | B155: 15 | D155: French toast | E155: Aunt Jemima | F155: Cinnamon | G155: Frozen | M155: BOGO | N155: Box | O155: 1 | P155: =2.69/2 -> 1.345 | Q155: 1.345
A156: Publix | B156: 15 | D156: Frozen vegetables | E156: Bird's Eye | F156: Various | G156: Mixed | M156: BOGO | N156: Bag | O156: 1 | P156: =2.59/2 -> 1.295 | Q156: 1.295
A157: Wal-Mart | B157: 9 | D157: Fruit mix | E157: Great Value | F157: Extra cherries | M157: Reg | N157: Oz | O157: 15 | P157: 0.98 | Q157: 0.06533333333
A158: Wal-Mart | B158: Surface Care | D158: Furniture polish | E158: Pledge | F158: Can | M158: Reg | N158: Oz | O158: 12.5 | P158: 3.97 | Q158: 0.3176
A159: Wal-Mart | B159: Pet | D159: Gloves | E159: Wells Lamont | F159: Leather | M159: Reg | N159: Pair | O159: 2 | P159: 9.5 | Q159: 4.75
A160: Wal-Mart | B160: 11 | D160: Gravy | E160: Campbell's | F160: Chicken | G160: Canned | M160: Reg | N160: Can | O160: 1 | P160: 1.18 | Q160: =P160/O160 -> 1.18
A161: Wal-Mart | B161: 11 | D161: Gravy | E161: Campbell's | F161: Turkey | G161: Canned | M161: Reg | N161: Can | O161: 1 | P161: 1.18 | Q161: 1.18
A162: Wal-Mart | B162: Greeting Cards | D162: Greeting card | E162: Hallmark | F162: Birthday | G162: Mary | M162: Reg | N162: Card | O162: 1 | P162: Varies
A163: Publix | B163: Fresh Meat | D163: Ground beef | E163: Publix | M163: Reg | N163: Lb. | O163: 1 | P163: 3.49 | Q163: =P163/O163 -> 3.49
A164: Wal-Mart | B164: Produce | D164: Guacamole | E164: Wholly | F164: Refrigerated | G164: Individual packs | M164: Reg | N164: Pack | O164: 1 | P164: 2.58 | Q164: 2.58
A165: Publix | B165: Candy & Gum | D165: Gum | E165: Eclipse | F165: Car cup | M165: BOGO | N165: Tub | O165: 1 | P165: =3.29/2 -> 1.645 | Q165: 1.645
A166: Publix | B166: Hair Care | C166: 1 | D166: Hair color | E166: Clairol Natural Instincts | F166: Brass-Free | G166: 5C medium brown | M166: Reg | N166: Box | O166: 1 | P166: 8.99 | Q166: 8.99
A167: Wal-Mart | B167: Hair Care | D167: Hair conditioner | E167: Fructis | M167: Reg | N167: Oz | O167: 25.4 | P167: 9.84 | Q167: 0.3874015748
A168: Wal-Mart | B168: Men's Grooming | D168: Hair spray | E168: Consort | F168: Unscented | M168: Reg | N168: Oz | O168: 8.3 | P168: 3.22 | Q168: 0.3879518072
A169: Wal-Mart | B169: Bath & Body | D169: Hand sanitizer | E169: Purell | F169: Aloe | M169: Reg | N169: Oz | O169: 6 | P169: 2.87 | Q169: 0.4783333333
A170: Wal-Mart | B170: Pain Relievers | D170: Hem. cream | E170: Preparation H | M170: Reg | N170: Tube | O170: 1 | P170: 5.48 | Q170: 5.48
A171: Publix | B171: Packaged Meat | D171: Hot dogs | E171: Ball Park | F171: Turkey | G171: Bun-length | M171: Reg | N171: Pack | O171: 10 | P171: 4.99 | Q171: 0.499
A172: Wal-Mart | B172: Pain Relievers | D172: Ibuprofen | E172: Equate | F172: Tablets | G172: 2-Pack | M172: Reg | N172: Tablet | O172: 200 | P172: 4 | Q172: 0.02
A173: Wal-Mart | B173: 2 | D173: Ice cream | E173: Polar Treats | F173: Chocolate | G173: Frozen | M173: Reg | N173: Carton | O173: 1 | P173: 1.98 | Q173: 1.98
A174: Publix | B174: 8 | D174: Jam | E174: Smucker's | F174: Strawberry | G174: Regular | M174: BOGO | N174: Oz | O174: 18 | P174: =3.59/2 -> 1.795 | Q174: 0.09972222222
A175: Wal-Mart | B175: 7 | D175: Jam | E175: Smucker's | F175: Strawberry | G175: Large | M175: Reg | N175: Oz | O175: 32 | P175: 3.68 | Q175: 0.115
A176: Publix | B176: Beverages | D176: Juice | E176: Ocean Spray | F176: Cranberry | G176: Light | M176: Reg | N176: Oz | O176: 60 | P176: 3.99 | Q176: 0.0665
A177: Wal-Mart | B177: Beverages | C177: 2 | D177: Juice | E177: V8 | F177: Vegetable | G177: Low salt bottle | M177: Reg | N177: Oz | O177: 64 | P177: 2.78 | Q177: 0.0434375
A178: Publix | B178: 7 | D178: Ketchup | E178: Heinz | M178: Sale | N178: Oz | O178: 36 | P178: 2 | Q178: 0.05555555556
A179: Wal-Mart | B179: 8 | D179: Ketchup | E179: Heinz | F179: Twin pack | M179: Reg | N179: Oz | O179: =50.5*2 -> 101 | P179: 5.96 | Q179: 0.05900990099
A180: Wal-Mart | B180: Laundry | D180: Laundry detergent | E180: Gain | F180: Liquid | M180: Reg | N180: Oz | O180: 100 | P180: 9.97 | Q180: 0.0997
A181: Wal-Mart | B181: Digestive Health | D181: Laxative | E181: Equate | F181: Tablets | M181: Reg | N181: Tablet | O181: 48 | P181: 3.78 | Q181: 0.07875
A182: Wal-Mart | B182: Produce | D182: Lettuce | E182: Great Value | F182: Head | M182: Reg | N182: Head | O182: 1 | P182: 1.28 | Q182: 1.28
A183: Wal-Mart | B183: DIY | D183: Light bulbs | E183: General Electric | F183: Regular | G183: 60 watt | M183: Reg | N183: Bulb | O183: 4 | P183: 1.58 | Q183: 0.395
A184: Wal-Mart | B184: Bath & Body | D184: Liquid hand soap | E184: Equate | M184: Reg | N184: Oz
A185: Publix | B185: Service Counter | C185: 5 | D185: Lottery tickets | E185: Florida | M185: N/A | N185: Draw | P185: N/A
A186: Publix | B186: Packaged Meat | D186: Lunchmeat | E186: OM Deli Fresh | F186: Turkey | G186: No Roasted | shaved | H186: Coupon | I186: Catalina | J186: $1.00/1 | K186: 2 | M186: BOGO | N186: Oz | O186: 16 | P186: =4.49/2 -> 2.245 | Q186: =P186/O186 -> 0.1403125
A187: Publix | B187: Packaged Meat | D187: Lunchmeat | E187: Oscar Mayer | F187: Turkey ham | Salami | G187: Sliced | M187: BOGO | N187: Oz | O187: 16 | P187: =3.79/2 -> 1.895 | Q187: 0.1184375
A188: Wal-Mart | B188: Packaged Meat | D188: Lunchmeat | E188: Hillshire Farms | F188: Deli Select | G188: Pastrami | M188: Reg | N188: Oz | O188: 8 | P188: 2.98 | Q188: 0.3725
A189: Wal-Mart | B189: Packaged Meat | D189: Lunchmeat | E189: OM Deli Fresh | F189: Turkey | G189: No Roasted | shaved | M189: Reg | N189: Tub | O189: 16 | P189: 4.98 | Q189: 0.31125
A190: Wal-Mart | B190: Packaged Meat | D190: Lunchmeat | E190: Oscar Mayer | F190: Turkey bologna | G190: Sliced | M190: Reg | N190: Oz | O190: 16 | P190: 2.48 | Q190: 0.155
A191: Wal-Mart | B191: Packaged Meat | D191: Lunchmeat | E191: Oscar Mayer | F191: Turkey ham | G191: Sliced | M191: Reg | N191: Oz | O191: 16 | P191: 2.98 | Q191: 0.18625
A192: Publix | B192: Deli | D192: Macaroni salad | E192: Publix | F192: Medium | G192: Small | M192: Reg | N192: Oz | O192: 8 | P192: 1.79 | Q192: 0.22375
A193: Wal-Mart | B193: Checkout | D193: Magazine | E193: National Enquirer | M193: Reg | N193: Each | O193: 1 | P193: Varies
A194: Wal-Mart | B194: 11 | D194: Manwich | E194: Hunt's | M194: Reg | N194: Can | O194: 1 | P194: 1 | Q194: =P194/O194 -> 1
A195: Publix | B195: Butter & Margarine | D195: Margarine | E195: Smart Balance | F195: Flaxseed | M195: BOGO | N195: Tub | O195: 1 | P195: =3.59/2 -> 1.795 | Q195: 1.795
A196: Wal-Mart | B196: Butter & Margarine | D196: Margarine | E196: Country Crock | F196: Cinnamon | G196: or Honey | M196: Reg | N196: Tub | O196: 1 | P196: 1.16 | Q196: 1.16
A197: Wal-Mart | B197: Butter & Margarine | D197: Margarine | E197: Smart Balance | F197: Flaxseed | M197: Reg | N197: Tub | O197: 1 | P197: 2.98 | Q197: 2.98
A198: Wal-Mart | B198: 11 | D198: Mashed potatoes | E198: Idaho | F198: Small | G198: Instant | M198: Reg | N198: Packet | O198: 1 | P198: 0.5 | Q198: 0.5
A199: Publix | B199: 7 | D199: Mayo | E199: Hellman's | F199: Regular | G199: Large | M199: BOGO | N199: Oz | O199: 30 | P199: =5.25/2 -> 2.625 | Q199: 0.0875
A200: Publix | B200: 7 | D200: Mayo | E200: Kraft | F200: Regular | G200: Large | M200: BOGO | N200: Oz | O200: 30 | P200: =5.19/2 -> 2.595 | Q200: 0.0865
... 157 more rows

Sheet Shopping List 2
A1: My Shopping List
I2: Coupons | N2: Compare > | O2: 24 | P2: 11.97 | Q2: =P2/O2 -> 0.49875
A3: Store | B3: Location | C3: Qty | D3: Item | E3: Brand | F3: Note 1 | G3: Note 2 | H3: Info | I3: Source | J3: Value | K3: # | L3: Expires | M3: Type | N3: Unit | O3: Count | P3: Price | Q3: P/Unit
A4: Wal-Mart | B4: Pain Relievers | D4: Acetaminophen | E4: Equate | F4: Tablets | G4: 2-pack | M4: Reg | N4: Tablet | O4: 200 | P4: 4 | Q4: =P4/O4 -> 0.02
A5: Wal-Mart | B5: Pain Relievers | D5: Acetaminophen | E5: Equate | F5: Tablets | G5: With sleep aid | M5: Reg | N5: Tablet | O5: 80 | P5: 4.98 | Q5: 0.06225
A6: Wal-Mart | B6: Shaving | D6: After shave gel | E6: Gillette | F6: Stuart | H6: Coupon | I6: Printed | J6: 3.00/2 | K6: 1 | L6: 2013-12-31 | M6: Reg | N6: Bottle | O6: 1 | P6: 1.97 | Q6: 1.97
A7: Wal-Mart | B7: DIY | D7: Air filter | E7: Filtrete | F7: 18 X 24 | M7: Reg | N7: Filter | O7: 1 | P7: 8.88 | Q7: 8.88
A8: Wal-Mart | B8: Allergy Medicine | D8: Allergy tabs | E8: Equate | F8: Compare to Claritin | M8: Reg | N8: Tablet | O8: 60 | P8: 7.42 | Q8: 0.1236666667
A9: Wal-Mart | B9: Paper/Plastic/Foil | D9: Aluminum foil | E9: Great Value | F9: Regular | M9: Reg | N9: SF | O9: 200 | P9: 6.48 | Q9: 0.0324
A10: Wal-Mart | B10: Digestive Health | D10: Antacid | E10: Equate | F10: Chewable | G10: Comp to Rolaids | M10: Reg | N10: Tablet | O10: 100 | P10: 2.68 | Q10: 0.0268
A11: Wal-Mart | B11: Digestive Health | D11: Antacid | E11: Equate | F11: Omeprazole | M11: Reg | N11: Tablet | O11: 42 | P11: 15.97 | Q11: 0.3802380952
A12: Publix | B12: Digestive Health | D12: Antacid | E12: Publix | F12: Omeprazole | M12: BOGO | N12: Tablet | O12: 28 | P12: 9.89 | Q12: 0.3532142857
A13: Walgreens | B13: Digestive Health | D13: Antacid | E13: Walgreens | F13: Omeprazole | M13: Sale | N13: Tablet | O13: 42 | P13: 12.99 | Q13: =P13/O13 -> 0.3092857143
A14: Print | B14: Print | C14: Print | D14: Print | E14: Print | F14: Print | G14: Print | H14: Print | I14: Don't Print | J14: Don't Print | K14: Don't Print | L14: Don't Print | M14: Don't Print | N14: Don't Print | O14: Don't Print | P14: Don't Print | Q14: Don't Print
A15: Type in the item's store name here. Note that there may be more than one store; this would apply to items which you would normally buy at your low-price store, but which you also buy when it's on sale at another store - like the Antacid lines in the Item column. | B15: Type in the location of the item here. This may be an aisle number or a description af the area | C15: Enter the amt to buy here | D15: Type in the description of the item here. Don't include brand names here. | E15: Type in the brand name here. | F15: This column allows for a further description of the item. | G15: Additional optional notes concerning the item can be entered here. | H15: Use this coulmn to note that there is a coupon or a sale or whatever you wish. | I15: Enter the source of the coupon in this column. If not printed or cut, list the source, like Flyer. If printed and cut, enter Printed. Etc. | J15: In this cell, enter the value of the coupon and how many items you are required to buy. | K15: Enter the quantity of coupons you have. | L15: Enter the date the coupon expires. | M15: Entries in this column indicate the type of price | N15: Enter a description of the unit here. | O15: Enter the quantity of units here. | P15: Enter the total price of the units here. | Q15: This coulmn is a calculation of the price per unit.

Sheet Shopping List 3
A1: Database Actions
A3: Important: Save of a copy of this spreadsheet with another name before making significant changes
A5: Sorting
A7: Steps to sort the database:
A9: 1. Highlight the entire database (all columns and rows with entries) starting with the column title Store
A10: 2. Use the following menu choices to sort the database by item in alphabetical order:
A12: - Data > Sort > Sort by: Item
A13: - Click OK to sort
A15: 3. To ready the list for printing use the following commands:
A17: - Data > Sort > Sort by: Store (changed from Item)
A18: - Click on the Add Level button, then choose: Location
A19: - Click OK to sort
A21: 4. Click on the Qty column down arrow to filter the records.
A23: - Unclick the (Blanks) choice so that only records with a number entry will show.'-
A25: Printing
A27: Highlight the print area starting with Store and ending at the bottom of the Info column.
A29: Print this selection.
A31: Do not re-sort the records at this point. Wait until you return from your shopping trip.
A32: When you return, check to see if any of the prices have changed; if so enter the new prices.
A34: Resorting
A36: Resort the database to the original state (alphbetical by item).
A38: 1. Click the down arrow on the Qty column and click on "Clear filter from QTY"
A39: 2. Press down on the Home button while holding down the Control button.
A40: This will take you to the top of the sheet and expose all rows.
A41: 3. Highlight the entire database (all columns and rows with entries) starting with the column title Store
A42: 4. Use the following menu choices to sort the database by item in alphabetical order:
A44: - Data > Sort
A45: - Click on the Then By description for the Location sort
A46: - Use the remove Level button to delete the Location sort
A47: - Then change the remaining sort by choice from Store to Item
A48: - Click OK to sort.
A49: - Click anywhere to remove the highlighting

Sheet Saving Progress Tracker 1
A1: Savings Progress Tracker
E3: Best Price | I3: We Paid | Q3: We Saved
A4: Date | B4: Store | C4: Brand | D4: Item | E4: Store | F4: # | G4: Each | H4: Total | I4: # | J4: Base | K4: Base Diff | L4: Coupon | M4: Sale | N4: BOGO | O4: Each Net | P4: Total | Q4: Amount | R4: % | S4: Notes
A5: 2011-11-03 | B5: Publix | C5: Barilla | D5: Pasta | E5: Wal-Mart | F5: 2 | G5: 1.28 | H5: =G5*F5 -> 2.56 | I5: =F5 -> 2 | J5: 1.47 | K5: =(G5-J5)*F5 -> -0.38 | N5: 1.47 | O5: =J5-((L5+M5+N5)/I5) -> 0.735 | P5: =O5*I5 -> 1.47 | Q5: =SUM(K5:N5) -> 1.09 | R5: =Q5/H5 -> 0.42578125
A6: 2011-11-03 | B6: Publix | C6: Thomas | D6: Bagels | E6: Wal-Mart | F6: 2 | G6: 2.98 | H6: =G6*F6 -> 5.96 | I6: 2 | J6: 4.49 | K6: =(G6-J6)*F6 -> -3.02 | N6: 4.49 | O6: 2.245 | P6: 4.49 | Q6: =SUM(K6:N6) -> 1.47 | R6: 0.2466442953
A7: 2011-11-03 | B7: Wal-Mart | C7: Lysol | D7: Bowl cleaner | E7: Wal-Mart | F7: 2 | G7: 1.97 | H7: 3.94 | I7: 2 | J7: =3.76/2 -> 1.88 | K7: 0.18 | N7: 1.88 | O7: 0.94 | P7: 1.88 | Q7: 2.06 | R7: 0.5228426396 | S7: Two pack
A8: 2011-11-03 | B8: Wal-Mart | C8: Crest | D8: ProHealth toothpaste | E8: Wal-Mart | F8: 2 | G8: 5.97 | H8: 11.94 | I8: 2 | J8: 5.97 | K8: 0 | L8: 5.97 | O8: 2.985 | P8: 5.97 | Q8: 5.97 | R8: 0.5 | S8: B1G1 coupon
A9: 2011-11-04 | B9: Wal-Mart | C9: Nabisco | D9: Chips Ahoy | E9: Wal-Mart | F9: 2 | G9: 2.5 | H9: 5 | I9: 2 | J9: 2.5 | K9: 0 | M9: 3 | O9: 1 | P9: 2 | Q9: 3 | R9: 0.6 | S9: Halloween markdown
A10: 2011-11-06 | B10: Wal-Mart | C10: Shout | D10: Stain remover | E10: Wal-Mart | F10: 1 | G10: 2.48 | H10: 2.48 | I10: 1 | J10: 2.48 | K10: 0 | L10: 0.25 | O10: 2.23 | P10: 2.23 | Q10: 0.25 | R10: 0.1008064516
A11: 2011-11-10 | B11: Dollar Gen | C11: Garnier | D11: Fructis Shampoo | E11: Wal-Mart | F11: 2 | G11: =0.187*13 -> 2.431 | H11: 4.862 | I11: 2 | J11: 3 | K11: -1.138 | L11: 2 | O11: 2 | P11: 4 | Q11: 0.862 | R11: 0.1772932949
A12: 2011-11-10 | B12: Publix | C12: Lysol | D12: Disinfectant wipes | E12: Wal-Mart | F12: 6 | G12: 4.54 | H12: 27.24 | I12: 6 | J12: 4.89 | K12: -2.1 | L12: 1 | N12: =3*4.89 -> 14.67 | O12: 2.278333333 | P12: 13.67 | Q12: 13.57 | R12: 0.498164464
A13: 2011-11-10 | B13: Publix | C13: Hunt's | D13: Manwich | E13: Wal-Mart | F13: 2 | G13: 1.28 | H13: 2.56 | I13: 2 | J13: 1.5 | K13: -0.44 | M13: 0.5 | O13: 1.25 | P13: 2.5 | Q13: 0.06 | R13: 0.0234375
A14: 2011-11-10 | B14: Publix | C14: Oscar Meyer | D14: Turkey ham lunchmeat | E14: Wal-Mart | F14: 2 | G14: 3 | H14: 6 | I14: 2 | J14: 3.79 | K14: -1.58 | N14: 3.79 | O14: 1.895 | P14: 3.79 | Q14: 2.21 | R14: 0.3683333333
A15: 2011-11-10 | B15: Publix | C15: Palmolive | D15: Dishwashing detergent | E15: Wal-Mart | F15: 1 | G15: =((2.64)/25)*38 -> 4.0128 | H15: 4.0128 | I15: 1 | J15: 4.59 | K15: -0.5772 | L15: 0.25 | O15: 4.34 | P15: 4.34 | Q15: -0.3272 | R15: -0.08153907496 | S15: Walmart out
A16: 2011-11-10 | B16: Wal-Mart | C16: Disposer Care | D16: Disposer Care | E16: Wal-Mart | F16: 1 | G16: 2.84 | H16: 2.84 | I16: 1 | J16: 2.84 | K16: 0 | L16: 0.75 | O16: 2.09 | P16: 2.09 | Q16: 0.75 | R16: 0.264084507
A17: 2011-11-10 | B17: Wal-Mart | C17: Blue Dog | D17: Dog treats | E17: Wal-Mart | F17: 1 | G17: 2.5 | H17: 2.5 | I17: 1 | J17: 2.5 | K17: 0 | L17: 1 | O17: 1.5 | P17: 1.5 | Q17: 1 | R17: 0.4
A18: 2011-11-11 | B18: Publix | C18: Lysol | D18: Disinfectant wipes | E18: Wal-Mart | F18: 4 | G18: 4.54 | H18: 18.16 | I18: 4 | J18: 4.89 | K18: -1.4 | N18: 9.78 | O18: 2.445 | P18: 9.78 | Q18: 8.38 | R18: 0.4614537445
A19: 2011-11-11 | B19: Publix | C19: Arnold | D19: 12-Grain bread | E19: Wal-Mart | F19: 2 | G19: 2.98 | H19: 5.96 | I19: 2 | J19: 4.29 | K19: -2.62 | N19: 4.29 | O19: 2.145 | P19: 4.29 | Q19: 1.67 | R19: 0.2802013423
A20: 2011-11-11 | B20: Wal-Mart | C20: Summer's Eve | D20: Body wash | E20: Wal-Mart | F20: 1 | G20: 3.98 | H20: 3.98 | I20: 1 | J20: 3.98 | K20: 0 | L20: 0.75 | O20: 3.23 | P20: 3.23 | Q20: 0.75 | R20: 0.1884422111
A21: 2011-11-13 | B21: Publix | C21: Lysol | D21: Disinfectant wipes | E21: Wal-Mart | F21: 4 | G21: 4.54 | H21: 18.16 | I21: 4 | J21: 4.89 | K21: -1.4 | L21: 2 | N21: 9.78 | O21: 1.945 | P21: 7.78 | Q21: 10.38 | R21: 0.5715859031
A22: 2011-11-13 | B22: Target | C22: Market Pantry | D22: Water | E22: Wal-Mart | F22: 2 | G22: 3.98 | H22: 7.96 | I22: 2 | J22: 2.99 | K22: 1.98 | O22: 2.99 | P22: 5.98 | Q22: 1.98 | R22: 0.2487437186
A23: 2011-11-17 | B23: Publix | C23: Duncan Hines | D23: Cake mix | E23: Wal-Mart | F23: 4 | G23: 1.25 | H23: 5 | I23: 4 | J23: 1.99 | K23: -2.96 | L23: 0.5 | N23: 3.98 | O23: 0.87 | P23: 3.48 | Q23: 1.52 | R23: 0.304
A24: 2011-11-17 | B24: Publix | C24: Fresh Express | D24: Salad fixings | E24: Wal-Mart | F24: 2 | G24: 3.99 | H24: 7.98 | I24: 2 | J24: 3.99 | K24: 0 | N24: 3.99 | O24: 1.995 | P24: 3.99 | Q24: 3.99 | R24: 0.5
A25: 2011-11-17 | B25: Publix | C25: Hellman's | D25: Light Mayo | E25: Wal-Mart | F25: 4 | G25: 3.48 | H25: 13.92 | I25: 4 | J25: 5.25 | K25: -7.08 | L25: 0.25 | N25: 10.5 | O25: 2.5625 | P25: 10.25 | Q25: 3.67 | R25: 0.2636494253
A26: 2011-11-17 | B26: Publix | C26: Lay's | D26: Assorted chips | E26: Wal-Mart | F26: 4 | G26: 2.58 | H26: 10.32 | I26: 4 | J26: 4.29 | K26: -6.84 | N26: 8.58 | O26: 2.145 | P26: 8.58 | Q26: 1.74 | R26: 0.1686046512
A27: 2011-11-17 | B27: Publix | C27: Marie's | D27: Salad dressing | E27: Wal-Mart | F27: 1 | G27: =0.219*15 -> 3.285 | H27: 3.285 | I27: 1 | J27: 3.99 | K27: -0.705 | L27: 1 | O27: 2.99 | P27: 2.99 | Q27: 0.295 | R27: 0.0898021309
A28: 2011-11-17 | B28: Publix | C28: Nabisco | D28: Assorted crackers | E28: Wal-Mart | F28: 4 | G28: 2.98 | H28: 11.92 | I28: 4 | J28: 3.89 | K28: -3.64 | L28: 0.75 | N28: 7.78 | O28: 1.7575 | P28: 7.03 | Q28: 4.89 | R28: 0.4102348993
A29: 2011-11-17 | B29: Publix | C29: Orville Redenbacher | D29: Popcorn | E29: Wal-Mart | F29: 2 | G29: 3.48 | H29: 6.96 | I29: 2 | J29: 4.99 | K29: -3.02 | L29: 0.55 | N29: 4.99 | O29: 2.22 | P29: 4.44 | Q29: 2.52 | R29: 0.3620689655
A30: 2011-11-17 | B30: Publix | C30: Aunt Jemima | D30: Lite syrup | E30: Wal-Mart | F30: 2 | G30: 3.36 | H30: 6.72 | I30: 2 | J30: 3.59 | K30: -0.46 | N30: 3.59 | O30: 1.795 | P30: 3.59 | Q30: 3.13 | R30: 0.4657738095
A31: 2011-11-17 | B31: Publix | C31: Planter's | D31: Cashews | E31: Wal-Mart | F31: 2 | G31: 3.98 | H31: 7.96 | I31: 2 | J31: 5.19 | K31: -2.42 | N31: 5.19 | O31: 2.595 | P31: 5.19 | Q31: 2.77 | R31: 0.3479899497
A32: 2011-11-17 | B32: Publix | C32: Planter's | D32: Mixed nuts | E32: Wal-Mart | F32: 2 | G32: 3.32 | H32: 6.64 | I32: 2 | J32: 5.19 | K32: -3.74 | N32: 5.19 | O32: 2.595 | P32: 5.19 | Q32: 1.45 | R32: 0.218373494
A33: 2011-11-17 | B33: Wal-Mart | C33: Filtrete | D33: A/C filter | E33: Wal-Mart | F33: 1 | G33: 4.58 | H33: 4.58 | I33: 1 | J33: 4.58 | K33: 0 | L33: 1 | O33: 3.58 | P33: 3.58 | Q33: 1 | R33: 0.2183406114
A34: 2011-11-17 | B34: Wal-Mart | C34: Palmolive | D34: Dish detergent | E34: Wal-Mart | F34: 1 | G34: 2.64 | H34: 2.64 | I34: 1 | J34: 2.64 | K34: 0 | L34: 0.25 | O34: 2.39 | P34: 2.39 | Q34: 0.25 | R34: 0.0946969697
A35: 2011-11-17 | B35: Wal-Mart | C35: Reddi-wip | D35: Whipped topping | E35: Wal-Mart | F35: 1 | G35: 1.98 | H35: 1.98 | I35: 1 | J35: 1.98 | K35: 0 | L35: 0.25 | O35: 1.73 | P35: 1.73 | Q35: 0.25 | R35: 0.1262626263
A36: 2011-11-17 | B36: Wal-Mart | C36: Rice Dream | D36: Rice milk | E36: Wal-Mart | F36: 1 | G36: 1.98 | H36: 1.98 | I36: 1 | J36: 1.98 | K36: 0 | L36: 1 | O36: 0.98 | P36: 0.98 | Q36: 1 | R36: 0.5050505051
A37: 2011-11-17 | B37: Wal-Mart | C37: Schick | D37: Disposable razors | E37: Wal-Mart | F37: 2 | G37: 5.97 | H37: 11.94 | I37: 2 | J37: 5.97 | K37: 0 | L37: 5.97 | O37: 2.985 | P37: 5.97 | Q37: 5.97 | R37: 0.5 | S37: B1G1 coupon
A38: 2011-11-17 | B38: Wal-Mart | C38: Sensodyne | D38: Pronamel 2-pack | E38: Wal-Mart | F38: 1 | G38: 8.98 | H38: 8.98 | I38: 1 | J38: 8.98 | K38: 0 | L38: 1 | O38: 7.98 | P38: 7.98 | Q38: 1 | R38: 0.1113585746
A39: 2011-11-17 | B39: Wal-Mart | C39: Crest | D39: Whitener strips | E39: Wal-Mart | F39: 1 | G39: 39.99 | H39: 39.99 | I39: 1 | J39: 39.99 | K39: 0 | L39: 7 | O39: 32.99 | P39: 32.99 | Q39: 7 | R39: 0.1750437609
A40: 2011-11-23 | B40: Publix | C40: Breyer's | D40: Ice cream | E40: Wal-Mart | F40: 2 | G40: 3.28 | H40: 6.56 | I40: 2 | J40: 5.99 | K40: -5.42 | L40: 1.5 | N40: 5.99 | O40: 2.245 | P40: 4.49 | Q40: 2.07 | R40: 0.3155487805
A41: 2011-11-23 | B41: Publix | C41: Keebler | D41: Assorted crackers | E41: Wal-Mart | F41: 4 | G41: 2.58 | H41: 10.32 | I41: 4 | J41: 3.79 | K41: -4.84 | L41: 1 | N41: 7.58 | O41: 1.645 | P41: 6.58 | Q41: 3.74 | R41: 0.3624031008
A42: 2011-11-23 | B42: Publix | C42: Lay's | D42: Assorted chips | E42: Wal-Mart | F42: 4 | G42: 2.58 | H42: 10.32 | I42: 4 | J42: 4.29 | K42: -6.84 | N42: 8.58 | O42: 2.145 | P42: 8.58 | Q42: 1.74 | R42: 0.1686046512
A43: 2011-11-23 | B43: Publix | C43: Nabisco | D43: Assorted crackers | E43: Wal-Mart | F43: 4 | G43: 2.5 | H43: 10 | I43: 4 | J43: 3.59 | K43: -4.36 | L43: 1 | N43: 7.18 | O43: 1.545 | P43: 6.18 | Q43: 3.82 | R43: 0.382
A44: 2011-11-23 | B44: Publix | C44: 3M | D44: O-Cello sponges | E44: Wal-Mart | F44: 2 | G44: 1.99 | H44: 3.98 | I44: 2 | J44: 1.99 | K44: 0 | M44: 2 | O44: 0.99 | P44: 1.98 | Q44: 2 | R44: 0.5025125628
A45: 2011-11-23 | B45: Publix | C45: Old El Paso | D45: Refried beans - vegetarian | E45: Publix | F45: 3 | G45: 1.59 | H45: 4.77 | I45: 3 | J45: 1.59 | K45: 0 | L45: 0.6 | O45: 1.39 | P45: 4.17 | Q45: 0.6 | R45: 0.1257861635 | S45: Walmart doesn't carry
A46: 2011-11-23 | B46: Wal-Mart | C46: Hershey | D46: Bars | E46: Wal-Mart | F46: 2 | G46: 3.94 | H46: 7.88 | I46: 2 | J46: 3.94 | K46: 0 | L46: 1 | O46: 3.44 | P46: 6.88 | Q46: 1 | R46: 0.1269035533
A47: 2011-11-23 | B47: Wal-Mart | C47: Lysol | D47: Bowl cleaner | E47: Wal-Mart | F47: 2 | G47: 1.97 | H47: 3.94 | I47: 2 | J47: =3.76/2 -> 1.88 | K47: 0.18 | N47: 1.88 | O47: 0.94 | P47: 1.88 | Q47: 2.06 | R47: 0.5228426396 | S47: Two pack
A48: 2011-11-23 | B48: Wal-Mart | C48: Milk-Bone | D48: Regular small biscuits | E48: Wal-Mart | F48: 1 | G48: 2.5 | H48: 2.5 | I48: 1 | J48: 2.5 | K48: 0 | L48: 2.5 | O48: 0 | P48: 0 | Q48: 2.5 | R48: 1
A49: 2011-11-23 | B49: Wal-Mart | C49: Milk-Bone | D49: Essential Plus biscuits | E49: Wal-Mart | F49: 1 | G49: 2.97 | H49: 2.97 | I49: 1 | J49: 2.97 | K49: 0 | L49: 2.97 | O49: 0 | P49: 0 | Q49: 2.97 | R49: 1
A50: 2011-11-23 | B50: Wal-Mart | C50: Reynolds | D50: Non-stick foil | E50: Wal-Mart | F50: 1 | G50: 3.78 | H50: 3.78 | I50: 1 | J50: 3.78 | K50: 0 | L50: 0.75 | O50: 3.03 | P50: 3.03 | Q50: 0.75 | R50: 0.1984126984
A51: 2011-11-23 | B51: Wal-Mart | C51: Resolve | D51: Carpet cleaner | E51: Wal-Mart | F51: 1 | G51: 4.23 | H51: 4.23 | I51: 1 | J51: 4.23 | K51: 0 | L51: 0.75 | O51: 3.48 | P51: 3.48 | Q51: 0.75 | R51: 0.1773049645
A52: 2011-11-23 | B52: Wal-Mart | C52: Betty Crocker | D52: Suddenly salad mix | E52: Wal-Mart | F52: 2 | G52: 1.67 | H52: 3.34 | I52: 2 | J52: 1.67 | K52: 0 | L52: 0.5 | O52: 1.42 | P52: 2.84 | Q52: 0.5 | R52: 0.1497005988
A53: 2011-11-23 | B53: Wal-Mart | C53: Summer's Eve | D53: Body wash | E53: Wal-Mart | F53: 1 | G53: 3.98 | H53: 3.98 | I53: 1 | J53: 3.98 | K53: 0 | L53: 0.75 | O53: 3.23 | P53: 3.23 | Q53: 0.75 | R53: 0.1884422111
A54: 2011-11-23 | B54: Wal-Mart | C54: Wholly | D54: Guacamole | E54: Wal-Mart | F54: 1 | G54: 2.58 | H54: 2.58 | I54: 1 | J54: 2.58 | K54: 0 | L54: 1 | O54: 1.58 | P54: 1.58 | Q54: 1 | R54: 0.3875968992
A55: 2011-11-23 | B55: Wal-Mart | C55: Lipton | D55: Tea | E55: Wal-Mart | F55: 1 | G55: 1.98 | H55: 1.98 | I55: 1 | J55: 1.98 | K55: 0 | L55: 0.25 | O55: 1.73 | P55: 1.73 | Q55: 0.25 | R55: 0.1262626263
A56: 2011-11-23 | B56: Wal-Mart | C56: Unknown | D56: Unknown peelie | E56: Wal-Mart | F56: 1 | G56: 0 | H56: 0 | I56: 1 | J56: 0 | K56: 0 | L56: 0.5 | O56: -0.5 | P56: -0.5 | Q56: 0.5 | R56: N/A
A57: 2011-11-28 | B57: Publix | C57: Cheezit | D57: Assorted crackers | E57: Wal-Mart | F57: 4 | G57: 2.68 | H57: 10.72 | I57: 4 | J57: 4.19 | K57: -6.04 | N57: 8.38 | O57: 2.095 | P57: 8.38 | Q57: 2.34 | R57: =Q57/H57 -> 0.2182835821
A58: 2011-11-28 | B58: Publix | C58: Fresh Express | D58: Salad fixings | E58: Publix | F58: 2 | G58: 3.99 | H58: 7.98 | I58: 2 | J58: 3.99 | K58: 0 | N58: 3.99 | O58: 1.995 | P58: 3.99 | Q58: 3.99 | R58: 0.5 | S58: Walmart doesn't carry
A59: 2011-11-28 | B59: Publix | C59: Jif | D59: Peanut butter | E59: Wal-Mart | F59: 4 | G59: =9.34/2 -> 4.67 | H59: 18.68 | I59: 4 | J59: 6.31 | K59: -6.56 | N59: 12.62 | O59: 3.155 | P59: 12.62 | Q59: 6.06 | R59: 0.3244111349
A60: 2011-11-28 | B60: Publix | C60: Mrs. Paul's | D60: Fish sandwich fillets | E60: Wal-Mart | F60: 2 | G60: 4.57 | H60: 9.14 | I60: 2 | J60: 5.99 | K60: -2.84 | N60: 5.99 | O60: 2.995 | P60: 5.99 | Q60: 3.15 | R60: 0.3446389497
A61: 2011-11-28 | B61: Publix | C61: Claussen | D61: Kosher slices | E61: Wal-Mart | F61: 4 | G61: 2.98 | H61: 11.92 | I61: 4 | J61: 3.39 | K61: -1.64 | M61: =1.39*4 -> 5.56 | O61: 2 | P61: 8 | Q61: 3.92 | R61: 0.3288590604
A62: 2011-11-28 | B62: Publix | C62: 7-UP | D62: 7-UP, A&W, Can Dry | E62: Wal-Mart | F62: 8 | G62: 3.98 | H62: 31.84 | I62: 8 | J62: 4 | K62: -0.16 | N62: 8 | O62: 3 | P62: 24 | Q62: 7.84 | R62: 0.2462311558 | S62: B3G1
A63: 2011-11-28 | B63: Wal-Mart | C63: Progresso | D63: Light soup | E63: Wal-Mart | F63: 8 | G63: 1.68 | H63: 13.44 | I63: 8 | J63: 1.68 | K63: 0 | L63: 2 | O63: 1.43 | P63: 11.44 | Q63: 2 | R63: 0.1488095238
A64: 2011-11-28 | B64: Wal-Mart | C64: Brawny | D64: Paper towels | E64: Wal-Mart | F64: 2 | G64: 9.27 | H64: 18.54 | I64: 2 | J64: 9.97 | K64: -1.4 | L64: 1 | O64: 9.47 | P64: 18.94 | Q64: -0.4 | R64: -0.02157497303 | S64: Base is generic
A65: 2011-11-28 | B65: Wal-Mart | C65: Smucker's | D65: Jam | E65: Wal-Mart | F65: 2 | G65: 3.68 | H65: 7.36 | I65: 2 | J65: 3.68 | K65: 0 | L65: 1 | O65: 3.18 | P65: 6.36 | Q65: 1 | R65: 0.1358695652
A66: 2011-11-28 | B66: Wal-Mart | C66: Bigelow | D66: Tea | E66: Wal-Mart | F66: 1 | G66: 2.18 | H66: 2.18 | I66: 1 | J66: 2.18 | K66: 0 | L66: 0.55 | O66: 1.63 | P66: 1.63 | Q66: 0.55 | R66: 0.252293578
A67: 2011-11-28 | B67: Target | C67: Del Monte | D67: Fruit cups | E67: Wal-Mart | F67: 4 | G67: 2.12 | H67: 8.48 | I67: 4 | J67: 2.54 | K67: -1.68 | L67: 1 | M67: 2.2 | O67: 1.74 | P67: 6.96 | Q67: 1.52 | R67: 0.179245283
A68: 2011-11-29 | B68: Publix | C68: Pop Secret | D68: Popcorn - 100 calorie Kettle | E68: Publix | F68: 2 | G68: 4.99 | H68: 9.98 | I68: 2 | J68: 4.99 | K68: 0 | L68: 1 | N68: 4.99 | O68: 1.995 | P68: 3.99 | Q68: 5.99 | R68: 0.6002004008 | S68: Walmart doesn't carry
A69: Date | B69: Store | C69: Brand | D69: End November
A70: November 2011 Totals | H70: =SUM(H7:H68) -> 513.7798 | K70: =SUM(K5:K69) -> -84.9602 | L70: =SUM(L5:L69) -> 55.11 | M70: =SUM(M5:M69) -> 13.26 | N70: =SUM(N5:N69) -> 179.12 | P70: =SUM(P5:P69) -> 359.77 | Q70: =SUM(Q5:Q69) -> 162.5298 | R70: =Q70/H70 -> 0.3163413587
A71: Date | B71: Store | C71: Brand | D71: Begin December | K71: =(G71-J71)*F71 -> 0
A72: 2011-12-01 | B72: Publix | C72: Old El Paso | D72: Refried beans - vegetarian | E72: Publix | F72: 8 | G72: 1.59 | H72: =G72*F72 -> 12.72 | I72: =F72 -> 8 | J72: 1.59 | K72: 0 | M72: 2.72 | O72: =J72-((L72+M72+N72)/I72) -> 1.25 | P72: =O72*I72 -> 10 | Q72: =SUM(K72:N72) -> 2.72 | R72: =Q72/H72 -> 0.213836478 | S72: Walmart doesn't carry
A73: 2011-12-01 | B73: Publix | C73: Aunt Jemima | D73: French toast | E73: Publix | F73: 2 | G73: 2.69 | H73: 5.38 | I73: 2 | J73: 2.69 | K73: 0 | N73: 2.69 | O73: 1.345 | P73: 2.69 | Q73: 2.69 | R73: 0.5 | S73: Walmart doesn't carry
A74: 2011-12-01 | B74: Publix | C74: Gillette | D74: Speed Stick deodorant | E74: Wal-Mart | F74: 2 | G74: 2.18 | H74: 4.36 | I74: 2 | J74: 2.79 | K74: -1.22 | N74: 2.79 | O74: 1.395 | P74: 2.79 | Q74: 1.57 | R74: 0.3600917431 | S74: Not 24/7 product
A75: 2011-12-01 | B75: Publix | C75: Thomas | D75: Bagels | E75: Wal-Mart | F75: 2 | G75: 2.98 | H75: 5.96 | I75: 2 | J75: 4.49 | K75: -3.02 | N75: 4.49 | O75: 2.245 | P75: 4.49 | Q75: 1.47 | R75: 0.2466442953
A76: 2011-12-01 | B76: Publix | C76: Perdue | D76: Chicken strips | E76: Publix | F76: 4 | G76: 4.39 | H76: 17.56 | I76: 4 | J76: 4.39 | K76: 0 | N76: 8.78 | O76: 2.195 | P76: 8.78 | Q76: 8.78 | R76: 0.5 | S76: Walmart doesn't carry
A77: 2011-12-01 | B77: Publix | C77: Rothbury | D77: Croutons | E77: Wal-Mart | F77: 1 | G77: 1 | H77: 1 | I77: 1 | J77: 1.29 | K77: -0.29 | O77: 1.29 | P77: 1.29 | Q77: -0.29 | R77: -0.29 | S77: Walmart out
A78: 2011-12-01 | B78: Publix | C78: Del Monte | D78: Fruit cups | E78: Wal-Mart | F78: 4 | G78: 2.12 | H78: 8.48 | I78: 4 | J78: 2.53 | K78: -1.64 | L78: 1 | N78: 5.06 | O78: 1.015 | P78: 4.06 | Q78: 4.42 | R78: 0.5212264151
A79: 2011-12-01 | B79: Publix | C79: Mt. Olive | D79: Relish - small | E79: Publix | F79: 2 | G79: 2.19 | H79: 4.38 | I79: 2 | J79: 2.19 | K79: 0 | N79: 2.19 | O79: 1.095 | P79: 2.19 | Q79: 2.19 | R79: 0.5 | S79: Walmart doesn't carry
A80: 2011-12-01 | B80: Publix | C80: Marzetti's | D80: Dressing | E80: Publix | F80: 1 | G80: 3.69 | H80: 3.69 | I80: 1 | J80: 3.69 | K80: 0 | L80: 1 | O80: 2.69 | P80: 2.69 | Q80: 1 | R80: 0.27100271 | S80: Walmart doesn't carry
A81: 2011-12-01 | B81: Wal-Mart | C81: Unknown | D81: Unknown peelie | E81: Wal-Mart | F81: 1 | H81: 0 | I81: 1 | K81: 0 | L81: 0.5 | O81: -0.5 | P81: -0.5 | Q81: 0.5 | R81: N/A
A82: 2011-12-01 | B82: Wal-Mart | C82: Hershey | D82: Bars | E82: Wal-Mart | F82: 2 | G82: 3.94 | H82: 7.88 | I82: 2 | J82: 3.94 | K82: 0 | L82: 1 | O82: 3.44 | P82: 6.88 | Q82: 1 | R82: =Q82/H82 -> 0.1269035533
A83: 2011-12-01 | B83: Wal-Mart | C83: Reynold's | D83: Aluminum foil | E83: Wal-Mart | F83: 1 | G83: 7.98 | H83: 7.98 | I83: 1 | J83: 7.98 | K83: 0 | L83: 1.25 | O83: 6.73 | P83: 6.73 | Q83: 1.25 | R83: 0.156641604
A84: 2011-12-01 | B84: Wal-Mart | C84: V8 | D84: Vegetable juice | E84: Wal-Mart | F84: 1 | G84: 3.98 | H84: 3.98 | I84: 1 | J84: 3.98 | K84: 0 | L84: 1 | O84: 2.98 | P84: 2.98 | Q84: 1 | R84: 0.2512562814
A85: 2011-12-07 | B85: Dollar Gen | C85: Dollar General | D85: Omeprazole (28 ct) | E85: Wal-Mart | F85: 1 | G85: =0.428*28 -> 11.984 | H85: 11.984 | I85: 1 | J85: 8.75 | K85: 3.234 | O85: 8.75 | P85: 8.75 | Q85: 3.234 | R85: 0.2698598131
A86: 2011-12-08 | B86: Target | C86: Lysol | D86: Disinfectant wipes 3-packs | E86: Wal-Mart | F86: 9 | G86: 4.54 | H86: 40.86 | I86: 9 | J86: =10.79/3 -> 3.596666667 | K86: 8.49 | L86: 4 | O86: 3.152222222 | P86: 28.37 | Q86: 12.49 | R86: 0.3056779246
A87: 2011-12-08 | B87: Target | C87: Oscar Meyer | D87: Deli Fresh Turkey | E87: Wal-Mart | F87: 2 | G87: =9*0.311 -> 2.799 | H87: 5.598 | I87: 2 | J87: =2.89 -> 2.89 | K87: -0.182 | L87: 2 | O87: 1.89 | P87: 3.78 | Q87: 1.818 | R87: 0.3247588424
A88: 2011-12-08 | B88: Target | C88: Duracell | D88: AA batteries (20 ct) | E88: Wal-Mart | F88: 1 | G88: =20*0.623 -> 12.46 | H88: 12.46 | I88: 1 | J88: 12.49 | K88: -0.03 | L88: 0.5 | M88: 1.5 | O88: 10.49 | P88: 10.49 | Q88: 1.97 | R88: 0.158105939
A89: 2011-12-08 | B89: Target | C89: Duracell | D89: AAA batteries (20 ct) | E89: Wal-Mart | F89: 1 | G89: =20*0.623 -> 12.46 | H89: 12.46 | I89: 1 | J89: 12.49 | K89: -0.03 | L89: 1 | M89: 1.5 | O89: 9.99 | P89: 9.99 | Q89: 2.47 | R89: 0.1982343499
A90: 2011-12-08 | B90: Target | C90: 7-UP | D90: 7-UP, A&W, Can Dry | E90: Wal-Mart | F90: 6 | G90: 3.98 | H90: 23.88 | I90: 6 | J90: 4.79 | K90: -4.86 | M90: 8.76 | O90: 3.33 | P90: 19.98 | Q90: 3.9 | R90: 0.1633165829 | S90: B3G1
A91: 2011-12-08 | B91: Publix | C91: Publix | D91: Muffins | E91: Publix | F91: 2 | G91: 3.09 | H91: 6.18 | I91: 2 | J91: 3.09 | K91: 0 | N91: 3.09 | O91: 1.545 | P91: 3.09 | Q91: 3.09 | R91: 0.5 | S91: Walmart doesn't carry
A92: 2011-12-08 | B92: Publix | C92: Pop Secret | D92: Popcorn - 100 calorie Kettle | E92: Publix | F92: 2 | G92: 4.99 | H92: 9.98 | I92: 2 | J92: 4.99 | K92: 0 | L92: 1 | N92: 4.99 | O92: 1.995 | P92: 3.99 | Q92: 5.99 | R92: 0.6002004008 | S92: Walmart doesn't carry
A93: 2011-12-08 | B93: Publix | C93: Nabisco | D93: Honey Maid | E93: Wal-Mart | F93: 4 | G93: 2.98 | H93: 11.92 | I93: 4 | J93: 4.19 | K93: -4.84 | L93: 1 | N93: 8.38 | O93: 1.845 | P93: 7.38 | Q93: 4.54 | R93: 0.3808724832
A94: 2011-12-08 | B94: Publix | C94: Lysol | D94: Disinfectant spray 12 oz | E94: Wal-Mart | F94: 1 | G94: 4.99 | H94: 4.99 | I94: 1 | J94: 4.99 | K94: 0 | L94: 0.5 | O94: 4.49 | P94: 4.49 | Q94: 0.5 | R94: 0.1002004008
A95: 2011-12-08 | B95: Publix | C95: Publix | D95: Shredded cheese 2% milk | E95: Publix | F95: 2 | G95: 3.39 | H95: 6.78 | I95: 2 | J95: 3.39 | K95: 0 | L95: 1 | M95: 1.78 | O95: 2 | P95: 4 | Q95: 2.78 | R95: 0.4100294985 | S95: Walmart doesn't carry
A96: 2011-12-08 | B96: Publix | C96: Palmolive | D96: Dish detergent | E96: Wal-Mart | F96: 3 | G96: =0.097*25 -> 2.425 | H96: 7.275 | I96: 3 | J96: =1.2+2.29 -> 3.49 | K96: -3.195 | M96: 3.6 | O96: 2.29 | P96: 6.87 | Q96: 0.405 | R96: 0.05567010309
A97: 2011-12-08 | B97: Publix | C97: Smart Balance | D97: Buttery spread | E97: Wal-Mart | F97: 2 | G97: 2.98 | H97: 5.96 | I97: 2 | J97: 3.59 | K97: -1.22 | L97: 1 | N97: 3.59 | O97: 1.295 | P97: 2.59 | Q97: 3.37 | R97: 0.5654362416
A98: 2011-12-08 | B98: Publix | C98: Unknown | D98: Unknown peelie | E98: Wal-Mart | F98: 1 | H98: 0 | I98: 1 | K98: 0 | L98: 0.75 | O98: -0.75 | P98: -0.75 | Q98: 0.75 | R98: N/A
A99: 2011-12-08 | B99: Wal-Mart | C99: Thera-Flu | D99: Packets | E99: Wal-Mart | F99: 1 | G99: 4.47 | H99: 4.47 | I99: 1 | J99: 4.47 | K99: 0 | L99: 4 | O99: 0.47 | P99: 0.47 | Q99: 4 | R99: =Q99/H99 -> 0.8948545861
A100: 2011-12-08 | B100: Wal-Mart | C100: Iams | D100: Dog food | E100: Wal-Mart | F100: 1 | G100: 17.88 | H100: 17.88 | I100: 1 | J100: 17.88 | K100: 0 | L100: 1 | O100: 16.88 | P100: 16.88 | Q100: 1 | R100: =Q100/H100 -> 0.05592841163
A101: 2011-12-14 | B101: Wal-Mart | C101: Sensodyne | D101: Pronamel 2-pack | E101: Wal-Mart | F101: 1 | G101: 8.98 | H101: 8.98 | I101: 1 | J101: 8.98 | K101: 0 | L101: 1 | O101: 7.98 | P101: 7.98 | Q101: 1 | R101: =Q101/H101 -> 0.1113585746
A102: 2011-12-14 | B102: Wal-Mart | C102: Duracell | D102: 9A batteries | E102: Wal-Mart | F102: 1 | G102: 11.24 | H102: 11.24 | I102: 1 | J102: 11.24 | K102: 0 | L102: 1 | O102: 10.24 | P102: 10.24 | Q102: 1 | R102: 0.08896797153
A103: 2011-12-14 | B103: Wal-Mart | C103: Breyer's | D103: Ice cream | E103: Wal-Mart | F103: 2 | G103: 3.48 | H103: 6.96 | I103: 2 | J103: 3.48 | K103: 0 | L103: 1.5 | O103: 2.73 | P103: 5.46 | Q103: 1.5 | R103: 0.2155172414
A104: 2011-12-14 | B104: Wal-Mart | C104: Nabisco | D104: Oreo cookies | E104: Wal-Mart | F104: 1 | G104: 2.98 | H104: 2.98 | I104: 1 | J104: 2.98 | K104: 0 | L104: 1 | O104: 1.98 | P104: 1.98 | Q104: 1 | R104: 0.3355704698
A105: 2011-12-14 | B105: Wal-Mart | C105: Nabisco | D105: Chips Ahoy | E105: Wal-Mart | F105: 1 | G105: 2.5 | H105: 2.5 | I105: 1 | J105: 2.5 | K105: 0 | L105: 1 | O105: 1.5 | P105: 1.5 | Q105: 1 | R105: 0.4
A106: 2011-12-14 | B106: Target | C106: Hershey | D106: Chocolate bars | E106: Wal-Mart | F106: 2 | G106: 3.94 | H106: 7.88 | I106: 2 | J106: 3.69 | K106: 0.5 | L106: 2 | M106: 1.38 | O106: 2 | P106: 4 | Q106: 3.88 | R106: 0.4923857868
A107: 2011-12-14 | B107: Target | C107: Dasani | D107: Water | E107: Wal-Mart | F107: 4 | G107: 4.98 | H107: 19.92 | I107: 4 | J107: 4.99 | K107: -0.04 | M107: =0.99*4 -> 3.96 | O107: 4 | P107: 16 | Q107: 3.92 | R107: 0.1967871486
A108: 2011-12-15 | B108: Publix | C108: Kraft | D108: Shredded cheese 8 oz | E108: Wal-Mart | F108: 2 | G108: 2.58 | H108: 5.16 | I108: 2 | J108: 3.99 | K108: -2.82 | L108: 1 | N108: 3.99 | O108: 1.495 | P108: 2.99 | Q108: 2.17 | R108: 0.4205426357
A109: 2011-12-15 | B109: Publix | C109: Pepperidge Farm | D109: Cookies | E109: Wal-Mart | F109: 4 | G109: 2.68 | H109: 10.72 | I109: 4 | J109: 3.49 | K109: -3.24 | L109: 2 | N109: =3.49*2 -> 6.98 | O109: 1.245 | P109: 4.98 | Q109: 5.74 | R109: 0.5354477612
A110: 2011-12-15 | B110: Publix | C110: Arnold | D110: 12-Grain bread | E110: Wal-Mart | F110: 2 | G110: 2.98 | H110: 5.96 | I110: 2 | J110: 4.29 | K110: -2.62 | N110: 4.29 | O110: 2.145 | P110: 4.29 | Q110: 1.67 | R110: 0.2802013423
A111: 2011-12-15 | B111: Publix | C111: Duncan Hines | D111: Cake mix | E111: Wal-Mart | F111: 4 | G111: 1.25 | H111: 5 | I111: 4 | J111: 1.99 | K111: -2.96 | N111: 3.98 | O111: 0.995 | P111: 3.98 | Q111: 1.02 | R111: 0.204
A112: 2011-12-15 | B112: Publix | C112: Ritz | D112: Ritz bits | E112: Wal-Mart | F112: 2 | G112: 2.98 | H112: 5.96 | I112: 2 | J112: 3.79 | K112: -1.62 | L112: 0.5 | N112: 3.89 | O112: 1.595 | P112: 3.19 | Q112: 2.77 | R112: 0.4647651007
A113: 2011-12-15 | B113: Publix | C113: Nabisco | D113: Thins | E113: Wal-Mart | F113: 2 | G113: 2.5 | H113: 5 | I113: 2 | J113: 2.5 | K113: 0 | N113: 2.5 | O113: 1.25 | P113: 2.5 | Q113: 2.5 | R113: 0.5
A114: 2011-12-15 | B114: Publix | C114: Heinz | D114: Ketchup 36 oz | E114: Wal-Mart | F114: 4 | G114: =0.067*36 -> 2.412 | H114: 9.648 | I114: 4 | J114: 3.19 | K114: -3.112 | M114: =1.19*4 -> 4.76 | O114: 2 | P114: 8 | Q114: 1.648 | R114: 0.1708126036
A115: 2011-12-15 | B115: Publix | C115: Kraft | D115: Mayo | E115: Wal-Mart | F115: 2 | G115: 3.58 | H115: 7.16 | I115: 2 | J115: 5.19 | K115: -3.22 | N115: 5.19 | O115: 2.595 | P115: 5.19 | Q115: 1.97 | R115: 0.2751396648
A116: 2011-12-15 | B116: Publix | C116: Fresh Express | D116: Salad fixings | E116: Publix | F116: 2 | G116: 3.99 | H116: 7.98 | I116: 2 | J116: 3.99 | K116: 0 | N116: 3.99 | O116: 1.995 | P116: 3.99 | Q116: 3.99 | R116: 0.5 | S116: Walmart doesn't carry
A117: 2011-12-15 | B117: Publix | C117: Del Monte | D117: Tomatoes 14.5 oz | E117: Wal-Mart | F117: 4 | G117: 0.94 | H117: 3.76 | I117: 4 | J117: 1.49 | K117: -2.2 | N117: =1.49*2 -> 2.98 | O117: 0.745 | P117: 2.98 | Q117: 0.78 | R117: 0.2074468085
A118: 2011-12-15 | B118: Publix | C118: Planter's | D118: Trail mix | E118: Publix | F118: 4 | G118: 2.49 | H118: 9.96 | I118: 4 | J118: 2.49 | K118: 0 | N118: 4.98 | O118: 1.245 | P118: 4.98 | Q118: 4.98 | R118: 0.5 | S118: Walmart doesn't carry
A119: 2011-12-15 | B119: Publix | C119: Lysol | D119: Disinfectant wipes | E119: Wal-Mart | F119: 6 | G119: 4.54 | H119: 27.24 | I119: 6 | J119: 4.89 | K119: -2.1 | L119: 3 | M119: =1.39*6 -> 8.34 | O119: 3 | P119: 18 | Q119: 9.24 | R119: 0.3392070485
A120: 2011-12-15 | B120: Publix | C120: Smart Balance | D120: Milk | E120: Wal-Mart | F120: 1 | G120: 4.59 | H120: 4.59 | I120: 1 | J120: 5.49 | K120: -0.9 | L120: 1.5 | M120: =5.49-3.99 -> 1.5 | O120: 2.49 | P120: 2.49 | Q120: 2.1 | R120: 0.4575163399
A121: 2011-12-15 | B121: Publix | C121: Oscar Meyer | D121: Turkey franks - bun length | E121: Publix | F121: 2 | G121: 4.49 | H121: 8.98 | I121: 2 | J121: 4.49 | K121: 0 | M121: 1.98 | O121: 3.5 | P121: 7 | Q121: 1.98 | R121: 0.2204899777 | S121: Walmart doesn't carry
A122: 2011-12-21 | B122: Walgreens | C122: Lay's | D122: Potato chips | E122: Wal-Mart | F122: 2 | G122: 2.58 | H122: 5.16 | I122: 2 | J122: 4.29 | K122: -3.42 | N122: =4.29 -> 4.29 | O122: 2.145 | P122: 4.29 | Q122: 0.87 | R122: 0.1686046512
A123: 2011-12-21 | B123: Wal-Mart | C123: Brawny | D123: Paper towels 8-roll | E123: Wal-Mart | F123: 2 | G123: 9.277355372 | H123: 18.55471074 | I123: 2 | J123: 9.97 | K123: -1.385289256 | L123: 2 | O123: 8.97 | P123: 17.94 | Q123: 0.6147107438 | R123: 0.03312963227 | S123: Base is generic
A124: 2011-12-21 | B124: Wal-Mart | C124: One-a-Day | D124: Vitamins - Mary | E124: Wal-Mart | F124: 2 | G124: 6.97 | H124: 13.94 | I124: 2 | J124: 6.97 | K124: 0 | L124: 5 | M124: 2.79 | O124: 3.075 | P124: 6.15 | Q124: 7.79 | R124: 0.5588235294
A125: 2011-12-21 | B125: Wal-Mart | C125: Wholly | D125: Guacamole | E125: Wal-Mart | F125: 1 | G125: 2.58 | H125: 2.58 | I125: 1 | J125: 2.58 | K125: 0 | L125: 1.5 | O125: 1.08 | P125: 1.08 | Q125: 1.5 | R125: 0.5813953488
A126: 2011-12-21 | B126: Target | C126: Lysol | D126: Bowl cleaner | E126: Wal-Mart | F126: 1 | G126: 3.76 | H126: 3.76 | I126: 1 | J126: 3.79 | K126: -0.03 | L126: 1 | O126: 2.79 | P126: 2.79 | Q126: 0.97 | R126: 0.2579787234
A127: 2011-12-28 | B127: Wal-Mart | C127: Reynolds | D127: Non-stick foil | E127: Wal-Mart | F127: 1 | G127: 3.78 | H127: 3.78 | I127: 1 | J127: 3.78 | K127: 0 | L127: 1 | O127: =J127-((L127+M127+N127)/I127) -> 2.78 | P127: =O127*I127 -> 2.78 | Q127: 1 | R127: =Q127/H127 -> 0.2645502646
A128: 2011-12-28 | B128: Wal-Mart | C128: Gillette | D128: Shaving cream | E128: Wal-Mart | F128: 1 | G128: 1.96 | H128: 1.96 | I128: 1 | J128: 1.96 | K128: 0 | L128: 1 | O128: =J128-((L128+M128+N128)/I128) -> 0.96 | P128: =O128*I128 -> 0.96 | Q128: 1 | R128: =Q128/H128 -> 0.5102040816
A129: 2011-12-29 | B129: Publix | C129: Pepperidge Farm | D129: 12-Grain bread | E129: Wal-Mart | F129: 2 | G129: 3.58 | H129: 7.16 | I129: 2 | J129: 3.69 | K129: -0.22 | N129: 3.69 | O129: 1.845 | P129: 3.69 | Q129: 3.47 | R129: 0.4846368715
A130: 2011-12-29 | B130: Publix | C130: Perdue | D130: Chicken strips | E130: Publix | F130: 2 | G130: 4.39 | H130: 8.78 | I130: 2 | J130: 4.39 | K130: 0 | L130: 2 | N130: 4.39 | O130: 1.195 | P130: 2.39 | Q130: 6.39 | R130: 0.7277904328 | S130: Walmart doesn't carry
A131: 2011-12-29 | B131: Publix | C131: Kraft | D131: BBQ sauce | E131: Wal-Mart | F131: 2 | G131: =0.062*18 -> 1.116 | H131: 2.232 | I131: 2 | J131: 1.65 | K131: -1.068 | N131: 1.65 | O131: 0.825 | P131: 1.65 | Q131: 0.582 | R131: 0.2607526882
A132: 2011-12-29 | B132: Publix | C132: General Mills | D132: Chex mix | E132: Wal-Mart | F132: 2 | G132: 2.18 | H132: 4.36 | I132: 2 | J132: 2.59 | K132: -0.82 | N132: 2.59 | O132: 1.295 | P132: 2.59 | Q132: 1.77 | R132: 0.4059633028
A133: 2011-12-29 | B133: Publix | C133: Frito Lay | D133: Ruffles | E133: Wal-Mart | F133: 2 | G133: 2.58 | H133: 5.16 | I133: 2 | J133: 4.29 | K133: -3.42 | N133: 4.29 | O133: 2.145 | P133: 4.29 | Q133: 0.87 | R133: 0.1686046512
A134: Date | B134: Store | C134: Brand | D134: End December
A135: December 2011 Totals | H135: =SUM(H72:H133) -> 521.0517107 | K135: =SUM(K72:K133) -> -43.49828926 | L135: =SUM(L72:L133) -> 52.5 | M135: =SUM(M72:M133) -> 44.57 | N135: =SUM(N72:N133) -> 109.72 | P135: =SUM(P72:P133) -> 357.76 | Q135: =SUM(Q72:Q133) -> 163.2917107 | R135: =Q135/H135 -> 0.3133886856
A136: 2011 Grand Totals | H136: =H135+H70 -> 1034.831511 | K136: =K135+K70 -> -128.4584893 | L136: =L135+L70 -> 107.61 | M136: =M135+M70 -> 57.83 | N136: =N135+N70 -> 288.84 | P136: =P135+P70 -> 717.53 | Q136: =Q135+Q70 -> 325.8215107 | R136: =Q136/H136 -> 0.3148546477
A137: Date | B137: Store | C137: Brand | D137: Begin January
A138: 2012-01-05 | B138: Publix | C138: Campbell's | D138: Chunky soup | E138: Wal-Mart | F138: 4 | G138: 1.5 | H138: =G138*F138 -> 6 | I138: =F138 -> 4 | J138: 2.49 | K138: =(G138-J138)*F138 -> -3.96 | L138: 1 | N138: =2.49*2 -> 4.98 | O138: =J138-((L138+M138+N138)/I138) -> 0.995 | P138: =O138*I138 -> 3.98 | Q138: =SUM(K138:N138) -> 2.02 | R138: =Q138/H138 -> 0.3366666667
A139: 2012-01-05 | B139: Publix | C139: Fresh Express | D139: Salad fixings | E139: Publix | F139: 2 | G139: 3.99 | H139: 7.98 | I139: 2 | J139: 3.99 | K139: 0 | N139: 3.99 | O139: 1.995 | P139: 3.99 | Q139: 3.99 | R139: 0.5 | S139: Walmart doesn't carry
A140: 2012-01-05 | B140: Publix | C140: Quaker | D140: Quick oats | E140: Wal-Mart | F140: 2 | G140: 2.28 | H140: 4.56 | I140: 2 | J140: 2.83 | K140: -1.1 | N140: 2.83 | O140: 1.415 | P140: 2.83 | Q140: 1.73 | R140: 0.3793859649
A141: 2012-01-05 | B141: Publix | C141: Puffs | D141: Tissues | E141: Wal-Mart | F141: 2 | G141: 0.92 | H141: 1.84 | I141: 2 | J141: 1.5 | K141: -1.16 | L141: 1 | M141: 1 | O141: 0.5 | P141: 1 | Q141: 0.84 | R141: 0.4565217391
A142: 2012-01-05 | B142: Wal-Mart | C142: Palmolive | D142: Dishwashing detergent | E142: Wal-Mart | F142: 1 | G142: 4.86 | H142: 4.86 | I142: 1 | J142: 4.86 | K142: 0 | L142: 0.5 | O142: 4.36 | P142: 4.36 | Q142: 0.5 | R142: 0.1028806584
A143: 2012-01-05 | B143: Wal-Mart | C143: Rice Dream | D143: Rice milk | E143: Wal-Mart | F143: 1 | G143: 1.97 | H143: 1.97 | I143: 1 | J143: 1.97 | K143: 0 | L143: 1 | O143: 0.97 | P143: 0.97 | Q143: 1 | R143: 0.5076142132
A144: 2012-01-05 | B144: Wal-Mart | C144: Breyer's | D144: Ice cream | E144: Wal-Mart | F144: 2 | G144: 3.87 | H144: 7.74 | I144: 2 | J144: 3.87 | K144: 0 | L144: 1.5 | O144: 3.12 | P144: 6.24 | Q144: 1.5 | R144: 0.1937984496
A145: 2012-01-11 | B145: Publix | C145: Smart Balance | D145: Buttery spread | E145: Wal-Mart | F145: 2 | G145: 2.98 | H145: 5.96 | I145: 2 | J145: 3.59 | K145: -1.22 | L145: 1.5 | N145: 3.59 | O145: 1.045 | P145: 2.09 | Q145: 3.87 | R145: 0.6493288591
A146: 2012-01-12 | B146: Publix | C146: Lay's | D146: Potato chips | E146: Wal-Mart | F146: 6 | G146: 2.58 | H146: 15.48 | I146: 6 | J146: 4.29 | K146: -10.26 | N146: =4.29*3 -> 12.87 | O146: 2.145 | P146: 12.87 | Q146: 2.61 | R146: 0.1686046512
A147: 2012-01-12 | B147: Publix | C147: Keebler | D147: Cookies | E147: Wal-Mart | F147: 6 | G147: 2.38 | H147: 14.28 | I147: 6 | J147: 3.69 | K147: -7.86 | N147: =3.69*3 -> 11.07 | O147: 1.845 | P147: 11.07 | Q147: 3.21 | R147: 0.224789916
A148: 2012-01-12 | B148: Publix | C148: Arnold | D148: 12-Grain bread | E148: Wal-Mart | F148: 2 | G148: 2.98 | H148: 5.96 | I148: 2 | J148: 4.29 | K148: -2.62 | N148: 4.29 | O148: 2.145 | P148: 4.29 | Q148: 1.67 | R148: 0.2802013423
A149: 2012-01-12 | B149: Target | C149: Lysol | D149: Disinfectant wipes 3-packs | E149: Wal-Mart | F149: 12 | G149: 4.54 | H149: 54.48 | I149: 12 | J149: =10.79/3 -> 3.596666667 | K149: 11.32 | L149: 6 | O149: 3.096666667 | P149: 37.16 | Q149: 17.32 | R149: 0.3179148311
A150: 2012-01-12 | B150: Target | C150: Garnier | D150: Fructis Shampoo | E150: Wal-Mart | F150: 2 | G150: 4.74 | H150: 9.48 | I150: 2 | J150: 4.74 | K150: 0 | L150: 2 | O150: 3.74 | P150: 7.48 | Q150: 2 | R150: 0.2109704641 | S150: Target coupon
A151: 2012-01-12 | B151: Wal-Mart | C151: Nabisco | D151: Ritz | Wheat Thins crackers | E151: Wal-Mart | F151: 6 | G151: 2.5 | H151: 15 | I151: 6 | J151: 2.5 | K151: 0 | L151: 5 | O151: =J151-((L151+M151+N151)/I151) -> 1.666666667 | P151: =O151*I151 -> 10 | Q151: 5 | R151: =Q151/H151 -> 0.3333333333
A152: 2012-01-12 | B152: Wal-Mart | C152: Breakstone | D152: Sour cream 8 oz | E152: Wal-Mart | F152: 2 | G152: 1.38 | H152: 2.76 | I152: 2 | J152: 1.38 | K152: 0 | L152: 1 | O152: =J152-((L152+M152+N152)/I152) -> 0.88 | P152: =O152*I152 -> 1.76 | Q152: 1 | R152: =Q152/H152 -> 0.3623188406
A153: 2012-01-12 | B153: Wal-Mart | C153: Marie's | D153: Salad dressing | E153: Wal-Mart | F153: 1 | G153: 2.94 | H153: 2.94 | I153: 1 | J153: 2.94 | K153: 0 | L153: 1 | O153: =J153-((L153+M153+N153)/I153) -> 1.94 | P153: =O153*I153 -> 1.94 | Q153: 1 | R153: =Q153/H153 -> 0.3401360544
A154: 2012-01-12 | B154: Wal-Mart | C154: Campbell's | D154: Condensed soup | E154: Wal-Mart | F154: 5 | G154: 1.25 | H154: 6.25 | I154: 5 | J154: 1.25 | K154: 0 | L154: 1 | O154: =J154-((L154+M154+N154)/I154) -> 1.05 | P154: =O154*I154 -> 5.25 | Q154: 1 | R154: =Q154/H154 -> 0.16
A155: 2012-01-19 | B155: Publix | C155: Thomas | D155: Bagels | E155: Wal-Mart | F155: 4 | G155: 2.98 | H155: 11.92 | I155: 4 | J155: 4.49 | K155: -6.04 | N155: =4.49*2 -> 8.98 | O155: =J155-((L155+M155+N155)/I155) -> 2.245 | P155: =O155*I155 -> 8.98 | Q155: 2.94 | R155: =Q155/H155 -> 0.2466442953
A156: 2012-01-19 | B156: Publix | C156: Hellman's | D156: Light Mayo | E156: Wal-Mart | F156: 2 | G156: 3.48 | H156: 6.96 | I156: 2 | J156: 5.25 | K156: -3.54 | N156: 5.25 | O156: 2.625 | P156: 5.25 | Q156: 1.71 | R156: 0.2456896552
A157: 2012-01-19 | B157: Publix | C157: Iams | D157: Dog food | E157: Wal-Mart | F157: 1 | G157: 17.88 | H157: 17.88 | I157: 1 | J157: 20.99 | K157: -3.11 | L157: 3 | M157: 4 | O157: 13.99 | P157: 13.99 | Q157: 3.89 | R157: 0.2175615213 | S157: Publix coupon
A158: 2012-01-19 | B158: Publix | C158: General Mills | D158: Chex mix | E158: Wal-Mart | F158: 4 | G158: 2.18 | H158: 8.72 | I158: 4 | J158: 2.59 | K158: -1.64 | L158: 1 | N158: =2.59*2 -> 5.18 | O158: 1.045 | P158: 4.18 | Q158: 4.54 | R158: 0.5206422018
A159: 2012-01-19 | B159: Publix | C159: Kraft | D159: Velveeta | E159: Wal-Mart | F159: 2 | G159: 3.83 | H159: 7.66 | I159: 2 | J159: 4.39 | K159: -1.12 | N159: 4.39 | O159: 2.195 | P159: 4.39 | Q159: 3.27 | R159: 0.4268929504
A160: 2012-01-19 | B160: Publix | C160: Peter Paul | D160: Mini Almond Joy bars | E160: Wal-Mart | F160: 2 | G160: 4.74 | H160: 9.48 | I160: 2 | J160: 5.99 | K160: -2.5 | N160: 5.99 | O160: 2.995 | P160: 5.99 | Q160: 3.49 | R160: 0.3681434599
A161: 2012-01-19 | B161: Publix | C161: Skintimate | D161: Shave gel | E161: Wal-Mart | F161: 2 | G161: 2.44 | H161: 4.88 | I161: 2 | J161: 2.69 | K161: -0.5 | N161: 2.69 | O161: 1.345 | P161: 2.69 | Q161: 2.19 | R161: 0.4487704918
A162: 2012-01-19 | B162: Publix | C162: Cheese | D162: Shredded | E162: Wal-Mart | F162: 2 | G162: =2.5+0.45 -> 2.95 | H162: 5.9 | I162: 2 | J162: 2.95 | K162: 0 | M162: 0.89 | O162: 2.505 | P162: 5.01 | Q162: 0.89 | R162: 0.1508474576
A163: 2012-01-19 | B163: Publix | C163: Pepsi | D163: Diet CF | E163: Wal-Mart | F163: 1 | G163: 3.98 | H163: 3.98 | I163: 1 | J163: 4.79 | K163: -0.81 | M163: 1.46 | O163: 3.33 | P163: 3.33 | Q163: 0.65 | R163: 0.1633165829
A164: 2012-01-19 | B164: Publix | C164: Publix | D164: Salad fixings | E164: Wal-Mart | F164: 2 | G164: 2.75 | H164: 5.5 | I164: 2 | J164: 2.75 | K164: 0 | M164: 0.49 | O164: 2.505 | P164: 5.01 | Q164: 0.49 | R164: 0.08909090909
A165: 2012-01-19 | B165: Wal-Mart | C165: Perdue | D165: Perfect portions chicken | E165: Wal-Mart | F165: 2 | G165: 6.48 | H165: 12.96 | I165: 2 | J165: 6.48 | K165: 0 | L165: 2 | O165: =J165-((L165+M165+N165)/I165) -> 5.48 | P165: =O165*I165 -> 10.96 | Q165: 2 | R165: =Q165/H165 -> 0.1543209877
A166: 2012-01-19 | B166: Wal-Mart | C166: Campbell's | D166: Soup | E166: Wal-Mart | F166: 4 | G166: 1.5 | H166: 6 | I166: 4 | J166: 1.5 | K166: 0 | L166: 1.5 | O166: =J166-((L166+M166+N166)/I166) -> 1.125 | P166: =O166*I166 -> 4.5 | Q166: 1.5 | R166: =Q166/H166 -> 0.25
A167: 2012-01-26 | B167: Wal-Mart | C167: Lysol | D167: Disinfectant spray 12 oz | E167: Wal-Mart | F167: 2 | G167: 4.22 | H167: 8.44 | I167: 2 | J167: 4.22 | K167: 0 | L167: 2 | O167: =J167-((L167+M167+N167)/I167) -> 3.22 | P167: =O167*I167 -> 6.44 | Q167: 2 | R167: =Q167/H167 -> 0.2369668246
A168: 2012-01-26 | B168: Wal-Mart | C168: Barilla | D168: Pasta sauce | E168: Wal-Mart | F168: 4 | G168: 2.42 | H168: 9.68 | I168: 4 | J168: 2.42 | K168: 0 | L168: 3.5 | O168: 1.545 | P168: 6.18 | Q168: 3.5 | R168: 0.3615702479
A169: 2012-01-26 | B169: Wal-Mart | C169: Wholly | D169: Guacamole | E169: Wal-Mart | F169: 1 | G169: 2.58 | H169: 2.58 | I169: 1 | J169: 2.58 | K169: 0 | L169: 1 | O169: 1.58 | P169: 1.58 | Q169: 1 | R169: 0.3875968992
A170: 2012-01-26 | B170: Wal-Mart | C170: Nabisco | D170: Teddy Grahams | E170: Wal-Mart | F170: 2 | G170: 2.78 | H170: 5.56 | I170: 2 | J170: 2.78 | K170: 0 | L170: 1 | O170: 2.28 | P170: 4.56 | Q170: 1 | R170: 0.1798561151
A171: 2012-01-26 | B171: Wal-Mart | C171: Nabisco | D171: Honey Maid Grahams | E171: Wal-Mart | F171: 2 | G171: 2.98 | H171: 5.96 | I171: 2 | J171: 2.98 | K171: 0 | L171: 1 | O171: 2.48 | P171: 4.96 | Q171: 1 | R171: 0.1677852349
A172: 2012-01-26 | B172: Wal-Mart | C172: Preparation H | D172: Cream | E172: Wal-Mart | F172: 1 | G172: 5.48 | H172: 5.48 | I172: 1 | J172: 5.48 | K172: 0 | L172: 2 | O172: 3.48 | P172: 3.48 | Q172: 2 | R172: 0.3649635036
A173: 2012-01-26 | B173: Target | C173: Lipton | D173: Tea 40 ct. | E173: Wal-Mart | F173: 1 | G173: 3.04 | H173: 3.04 | I173: 1 | J173: 3.04 | K173: 0 | L173: 0.75 | O173: 2.29 | P173: 2.29 | Q173: 0.75 | R173: 0.2467105263
A174: 2012-01-26 | B174: Target | C174: 7-UP | D174: 7-UP, A&W, Can Dry | E174: Wal-Mart | F174: 1 | G174: 3.98 | H174: 3.98 | I174: 1 | J174: 4.79 | K174: -0.81 | L174: 1 | O174: 3.79 | P174: 3.79 | Q174: 0.19 | R174: 0.04773869347 | S174: Target coupon
A175: 2012-01-26 | B175: Publix | C175: French's | D175: Mustard | E175: Wal-Mart | F175: 8 | G175: =0.094*14 -> 1.316 | H175: 10.528 | I175: 8 | J175: 1.95 | K175: -5.072 | L175: 0.6 | N175: =1.95*4 -> 7.8 | O175: 0.9 | P175: 7.2 | Q175: 3.328 | R175: 0.3161094225
A176: 2012-01-26 | B176: Publix | C176: Kraft | D176: BBQ sauce | E176: Wal-Mart | F176: 4 | G176: =0.062*18 -> 1.116 | H176: 4.464 | I176: 4 | J176: 1.85 | K176: -2.936 | N176: =1.85*2 -> 3.7 | O176: 0.925 | P176: 3.7 | Q176: 0.764 | R176: 0.1711469534
A177: 2012-01-26 | B177: Publix | C177: Pepperidge Farm | D177: Fish crackers | E177: Wal-Mart | F177: 2 | G177: 1.98 | H177: 3.96 | I177: 2 | J177: 2.39 | K177: -0.82 | N177: 2.39 | O177: 1.195 | P177: 2.39 | Q177: 1.57 | R177: 0.3964646465
A178: 2012-01-26 | B178: Publix | C178: Driscoll's | D178: Strawberries | E178: Wal-Mart | F178: 1 | G178: 2.99 | H178: 2.99 | I178: 1 | J178: 2.99 | K178: 0 | L178: 0.5 | M178: 0.49 | O178: 2 | P178: 2 | Q178: 0.99 | R178: 0.3311036789
A179: 2012-01-26 | B179: Publix | C179: Plainville | D179: Ground turkey | E179: Wal-Mart | F179: 4 | G179: 4.39 | H179: 17.56 | I179: 4 | J179: 4.39 | K179: 0 | M179: 4 | O179: 3.39 | P179: 13.56 | Q179: 4 | R179: 0.2277904328
A180: 2012-01-26 | B180: Publix | C180: Publix | D180: Coffee cake | E180: Wal-Mart | F180: 2 | G180: 4.99 | H180: 9.98 | I180: 2 | J180: 4.99 | K180: 0 | N180: 4.99 | O180: 2.495 | P180: 4.99 | Q180: 4.99 | R180: 0.5
A181: 2012-01-26 | B181: Publix | C181: Ball Park | D181: Turkey franks - bun length | E181: Publix | F181: 2 | G181: 4.49 | H181: 8.98 | I181: 2 | J181: 4.49 | K181: 0 | M181: =1.49*2 -> 2.98 | O181: 3 | P181: 6 | Q181: 2.98 | R181: 0.3318485523 | S181: Walmart doesn't carry
A182: 2012-01-30 | B182: Publix | C182: Emerald | D182: Nuts | E182: Wal-Mart | F182: 2 | G182: 4.48 | H182: 8.96 | I182: 2 | J182: 6.99 | K182: -5.02 | L182: 2 | N182: 6.99 | O182: 2.495 | P182: 4.99 | Q182: 3.97 | R182: 0.4430803571
A183: Date | B183: Store | C183: Brand | D183: End January
A184: January 2012 Totals | H184: =SUM(H138:H183) -> 381.522 | K184: =SUM(K138:K183) -> -50.778 | L184: =SUM(L138:L183) -> 45.35 | M184: =SUM(M138:M183) -> 15.31 | N184: =SUM(N138:N183) -> 101.97 | P184: =SUM(P138:P183) -> 269.67 | Q184: =SUM(Q138:Q183) -> 111.852 | R184: =Q184/H184 -> 0.2931731329
A185: Date | B185: Store | C185: Brand | D185: Begin February
A186: 2012-02-03 | B186: Publix | C186: Claussen | D186: Kosher slices | E186: Wal-Mart | F186: 3 | G186: 2.98 | H186: =G186*F186 -> 8.94 | I186: =F186 -> 3 | J186: 3.39 | K186: =(G186-J186)*F186 -> -1.23 | M186: =1.39*3 -> 4.17 | O186: =J186-((L186+M186+N186)/I186) -> 2 | P186: =O186*I186 -> 6 | Q186: =SUM(K186:N186) -> 2.94 | R186: =Q186/H186 -> 0.3288590604
A187: 2012-02-03 | B187: Publix | C187: Fresh Express | D187: Salad fixings | E187: Publix | F187: 2 | G187: 3.99 | H187: 7.98 | I187: 2 | J187: 3.99 | K187: 0 | N187: 3.99 | O187: 1.995 | P187: 3.99 | Q187: 3.99 | R187: 0.5 | S187: Walmart doesn't carry
A188: 2012-02-03 | B188: Publix | C188: Marzetti's | D188: Salad dressing | E188: Publix | F188: 2 | G188: 3.69 | H188: 7.38 | I188: 2 | J188: 3.69 | K188: 0 | L188: 1 | O188: 3.19 | P188: 6.38 | Q188: 1 | R188: 0.135501355 | S188: Walmart doesn't carry
A189: 2012-02-03 | B189: Publix | C189: Lay's | D189: Potato chips | E189: Wal-Mart | F189: 2 | G189: 2.58 | H189: 5.16 | I189: 2 | J189: 4.29 | K189: -3.42 | N189: 4.29 | O189: 2.145 | P189: 4.29 | Q189: 0.87 | R189: 0.1686046512
A190: 2012-02-03 | B190: Target | C190: Lysol | D190: Disinfectant wipes 3-packs | E190: Target | F190: 9 | G190: 4.54 | H190: 40.86 | I190: 9 | J190: =10.79/3 -> 3.596666667 | K190: 8.49 | M190: =(10.79-8.99)*3 -> 5.4 | O190: 2.996666667 | P190: 26.97 | Q190: 13.89 | R190: 0.3399412628
A191: 2012-02-03 | B191: Target | C191: 7-UP | D191: Bottles | E191: Wal-Mart | F191: 1 | G191: 2.98 | H191: 2.98 | I191: 1 | J191: 3.25 | K191: -0.27 | L191: 1 | O191: 2.25 | P191: 2.25 | Q191: 0.73 | R191: 0.244966443 | S191: Target coupon
A192: 2012-02-03 | B192: Wal-Mart | C192: HP | D192: Printer cartridge - 2-pack | E192: Wal-Mart | F192: 1 | G192: 26.98 | H192: 26.98 | I192: 1 | J192: 26.98 | K192: 0 | M192: 5 | O192: 21.98 | P192: 21.98 | Q192: 5 | R192: 0.1853224611 | S192: Gift card
A193: 2012-02-09 | B193: Publix | C193: Arnold | D193: 12-Grain bread | E193: Wal-Mart | F193: 2 | G193: 2.98 | H193: 5.96 | I193: 2 | J193: 4.29 | K193: -2.62 | N193: 4.29 | O193: 2.145 | P193: 4.29 | Q193: 1.67 | R193: 0.2802013423
A194: 2012-02-09 | B194: Publix | C194: Duncan Hines | D194: Cake mix | E194: Wal-Mart | F194: 2 | G194: 1.25 | H194: 2.5 | I194: 2 | J194: 1.99 | K194: -1.48 | N194: 1.99 | O194: 0.995 | P194: 1.99 | Q194: 0.51 | R194: 0.204
A195: 2012-02-09 | B195: Publix | C195: Duncan Hines | D195: Cake icing | E195: Wal-Mart | F195: 2 | G195: 1.54 | H195: 3.08 | I195: 2 | J195: 2.15 | K195: -1.22 | M195: =0.65*2 -> 1.3 | O195: 1.5 | P195: 3 | Q195: 0.08 | R195: 0.02597402597
A196: 2012-02-09 | B196: Publix | C196: Breyer's | D196: Ice cream | E196: Wal-Mart | F196: 2 | G196: 3.87 | H196: 7.74 | I196: 2 | J196: 5.99 | K196: -4.24 | N196: 5.99 | O196: 2.995 | P196: 5.99 | Q196: 1.75 | R196: 0.2260981912
A197: 2012-02-09 | B197: Publix | C197: 7-UP | D197: 7-UP, A&W, Can Dry | E197: Wal-Mart | F197: 4 | G197: 3.98 | H197: 15.92 | I197: 4 | J197: 4.99 | K197: -4.04 | M197: =0.99*4 -> 3.96 | N197: 4.99 | O197: 2.7525 | P197: 11.01 | Q197: 4.91 | R197: 0.3084170854
A198: 2012-02-09 | B198: Publix | C198: Publix | D198: Strawberries | E198: Wal-Mart | F198: 1 | G198: 2.99 | H198: 2.99 | I198: 1 | J198: 2.99 | K198: 0 | M198: 0.49 | O198: 2.5 | P198: 2.5 | Q198: 0.49 | R198: 0.1638795987
A199: 2012-02-09 | B199: Publix | C199: Old El Paso | D199: Refried beans - vegetarian | E199: Publix | F199: 6 | G199: 1.59 | H199: 9.54 | I199: 6 | J199: 1.59 | K199: 0 | L199: 1.2 | M199: =(0.59-0.25)*6 -> 2.04 | O199: 1.05 | P199: 6.3 | Q199: 3.24 | R199: 0.3396226415 | S199: Walmart doesn't carry
A200: 2012-02-09 | B200: Publix | C200: Marzetti's | D200: Salad dressing | E200: Publix | F200: 1 | G200: 3.69 | H200: 3.69 | I200: 1 | J200: 3.69 | K200: 0 | L200: 1 | O200: 2.69 | P200: 2.69 | Q200: 1 | R200: 0.27100271 | S200: Walmart doesn't carry
A201: 2012-02-09 | B201: Publix | C201: Sara Lee | D201: Cheesecake | E201: Publix | F201: 1 | G201: 7 | H201: 7 | I201: 1 | J201: 7.99 | K201: -0.99 | M201: 4 | O201: 3.99 | P201: 3.99 | Q201: 3.01 | R201: 0.43
... 390 more rows

Sheet Progress Tracker 2
A1: Notes
A3: Important: Save of a copy of this spreadsheet with another name before making significant changes
A5: Please refer to the description given on my site:
A7: Link
A9: Tip
A11: - To view the history of any variable, use the dropdown filter to limit the records showing

Sheet Sale Items History
A1: Publix Sale Items History | BE1: End
E2: Number of ads | F2: 53 | BE2: 2011
F3: BOGO | G3: 1/6 | H3: 1/13 | I3: 1/20 | J3: 1/27 | K3: 2/3 | L3: 2/10 | M3: 2/17 | N3: 2/24 | O3: 3/3 | P3: 3/10 | Q3: 3/17 | R3: 3/24 | S3: 3/31 | T3: 4/7 | U3: 4/14 | V3: 4/25 | W3: 5/5 | X3: 5/12 | Y3: 5/19 | Z3: 5/26 | AA3: 6/2 | AB3: 6/9 | AC3: 6/16 | AD3: 6/23 | AE3: 6/30 | AF3: 7/7 | AG3: 7/14 | AH3: 7/21 | AI3: 7/28 | AJ3: 8/4 | AK3: 8/11 | AL3: 8/18 | AM3: 8/25 | AN3: 9/1 | AO3: 9/8 | AP3: 9/15 | AQ3: 9/22 | AR3: 9/29 | AS3: 10/06 | AT3: 10/13 | AU3: 10/20 | AV3: 10/27 | AW3: 11/03 | AX3: 11/10 | AY3: 11/17 | AZ3: 11/25 | BA3: 12/1 | BB3: 12/8 | BC3: 12/15 | BD3: 12/22 | BE3: 12/26
A4: Brand | B4: Item | C4: Sale | D4: BOGO | E4: Total | F4: Freq | G4: 1/6 | H4: 1/13 | I4: 1/20 | J4: 1/27 | K4: 2/3 | L4: 2/10 | M4: 2/17 | N4: 2/24 | O4: 3/3 | P4: 3/10 | Q4: 3/17 | R4: 3/24 | S4: 3/31 | T4: 4/7 | U4: 4/14 | V4: 4/25 | W4: 5/5 | X4: 5/12 | Y4: 5/19 | Z4: 5/26 | AA4: 6/2 | AB4: 6/9 | AC4: 6/16 | AD4: 6/23 | AE4: 6/30 | AF4: 7/7 | AG4: 7/14 | AH4: 7/21 | AI4: 7/28 | AJ4: 8/4 | AK4: 8/11 | AL4: 8/18 | AM4: 8/25 | AN4: 9/1 | AO4: 9/8 | AP4: 9/15 | AQ4: 9/22 | AR4: 9/29 | AS4: 10/06 | AT4: 10/13 | AU4: 10/20 | AV4: 10/27 | AW4: 11/03 | AX4: 11/10 | AY4: 11/17 | AZ4: 11/25 | BA4: 12/1 | BB4: 12/8 | BC4: 12/15 | BD4: 12/22 | BE4: 12/26
A5: Hunt's | Del Monte | Rotel | B5: Tomatoes | C5: =COUNTIF(G5:BE5,"Sale") -> 0 | D5: =COUNTIF(G5:BE5,"BOGO") -> 22 | E5: =D5+C5 -> 22 | F5: =E5/$F$2 -> 0.4150943396 | G5: BOGO | I5: BOGO | K5: BOGO | M5: BOGO | N5: BOGO | R5: BOGO | T5: BOGO | V5: BOGO | X5: BOGO | Y5: BOGO | Z5: BOGO | AE5: BOGO | AF5: BOGO | AG5: BOGO | AL5: BOGO | AP5: BOGO | AU5: BOGO | AX5: BOGO | AY5: BOGO | BC5: BOGO | BD5: BOGO | BE5: BOGO
A6: Publix | Sargento | Kraft | B6: Cheese - shredded | C6: 18 | D6: 4 | E6: 22 | F6: 0.4150943396 | L6: Sale | M6: Sale | R6: Sale | U6: Sale | AB6: Sale | AD6: Sale | AE6: Sale | AG6: Sale | AH6: Sale | AK6: Sale | AL6: Sale | AO6: Sale | AR6: Sale | AS6: Sale | AU6: Sale | AV6: Sale | AY6: BOGO | BA6: Sale | BB6: Sale | BC6: BOGO | BD6: BOGO | BE6: BOGO
A7: Hellman's | Kraft | B7: Mayo | C7: 0 | D7: 20 | E7: 20 | F7: 0.3773584906 | H7: BOGO | K7: BOGO | Q7: BOGO | S7: BOGO | U7: BOGO | W7: BOGO | Z7: BOGO | AA7: BOGO | AC7: BOGO | AE7: BOGO | AH7: BOGO | AI7: BOGO | AM7: BOGO | AN7: BOGO | AP7: BOGO | AS7: BOGO | AW7: BOGO | AY7: BOGO | BC7: BOGO | BD7: BOGO
A8: Mount Olive | Vlasic | B8: Pickles and relish | C8: 0 | D8: 18 | E8: 18 | F8: 0.3396226415 | I8: BOGO | K8: BOGO | P8: BOGO | U8: BOGO | X8: BOGO | Z8: BOGO | AB8: BOGO | AG8: BOGO | AI8: BOGO | AL8: BOGO | AN8: BOGO | AT8: BOGO | AU8: BOGO | AW8: BOGO | AY8: BOGO | BA8: BOGO | BC8: BOGO | BD8: BOGO
A9: Various | B9: Water - other | C9: 18 | D9: 0 | E9: 18 | F9: 0.3396226415 | G9: Sale | K9: Sale | O9: Sale | Q9: Sale | U9: Sale | X9: Sale | Z9: Sale | AB9: Sale | AE9: Sale | AJ9: Sale | AL9: Sale | AP9: Sale | AU9: Sale | AW9: Sale | AY9: Sale | BA9: Sale | BC9: Sale | BD9: Sale
A10: Orville Red | B10: Popcorn | C10: 0 | D10: 16 | E10: 16 | F10: 0.3018867925 | G10: BOGO | J10: BOGO | O10: BOGO | R10: BOGO | U10: BOGO | Y10: BOGO | AB10: BOGO | AE10: BOGO | AG10: BOGO | AK10: BOGO | AQ10: BOGO | AU10: BOGO | AY10: BOGO | BA10: BOGO | BC10: BOGO | BD10: BOGO
A11: Emerald | B11: Nuts | C11: 0 | D11: 15 | E11: 15 | F11: 0.2830188679 | J11: BOGO | L11: BOGO | Q11: BOGO | T11: BOGO | X11: BOGO | AA11: BOGO | AE11: BOGO | AF11: BOGO | AH11: BOGO | AI11: BOGO | AM11: BOGO | AT11: BOGO | BC11: BOGO | BD11: BOGO | BE11: BOGO
A12: Del Monte | Green Giant | B12: Canned veggies | C12: 0 | D12: 15 | E12: 15 | F12: 0.2830188679 | H12: BOGO | M12: BOGO | N12: BOGO | R12: BOGO | U12: BOGO | X12: BOGO | AI12: BOGO | AK12: BOGO | AU12: BOGO | AW12: BOGO | AX12: BOGO | AY12: BOGO | BB12: BOGO | BC12: BOGO | BD12: BOGO
A13: Publix | Sargento | Kraft | B13: Cheese - sliced | C13: 15 | D13: 0 | E13: 15 | F13: 0.2830188679 | K13: Sale | L13: Sale | N13: Sale | U13: Sale | AB13: Sale | AD13: Sale | AE13: Sale | AJ13: Sale | AK13: Sale | AU13: Sale | AV13: Sale | AX13: Sale | BB13: Sale | BC13: Sale | BD13: Sale
A14: Nabisco | Pepp Farm | B14: Cookies | C14: 0 | D14: 14 | E14: 14 | F14: 0.2641509434 | J14: BOGO | L14: BOGO | T14: BOGO | X14: BOGO | Z14: BOGO | AK14: BOGO | AO14: BOGO | AP14: BOGO | AT14: BOGO | AW14: BOGO | AY14: BOGO | AZ14: BOGO | BC14: BOGO | BD14: BOGO
A15: Keebler Club or Townhouse | B15: Crackers | C15: 0 | D15: 13 | E15: 13 | F15: 0.2452830189 | G15: BOGO | N15: BOGO | P15: BOGO | R15: BOGO | T15: BOGO | U15: BOGO | X15: BOGO | AB15: BOGO | AM15: BOGO | AS15: BOGO | AT15: BOGO | BC15: BOGO | BD15: BOGO
A16: Kraft | B16: Salad dressing | C16: 0 | D16: 13 | E16: 13 | F16: 0.2452830189 | I16: BOGO | L16: BOGO | P16: BOGO | R16: BOGO | U16: BOGO | X16: BOGO | Z16: BOGO | AC16: BOGO | AE16: BOGO | AN16: BOGO | AW16: BOGO | BC16: BOGO | BD16: BOGO
A17: Pepsi | B17: Soft drinks | C17: 10 | D17: 3 | E17: 13 | F17: 0.2452830189 | G17: Sale | K17: BOGO | O17: Sale | R17: Sale | V17: Sale | Y17: BOGO | Z17: BOGO | AB17: Sale | AF17: Sale | AG17: Sale | AO17: Sale | AV17: Sale | BB17: Sale
A18: Frito Lay | B18: Chips - assorted | C18: 0 | D18: 12 | E18: 12 | F18: 0.2264150943 | H18: BOGO | K18: BOGO | M18: BOGO | Q18: BOGO | U18: BOGO | W18: BOGO | Z18: BOGO | AE18: BOGO | AJ18: BOGO | AN18: BOGO | AV18: BOGO | AY18: BOGO
A19: Pop Secret | B19: Popcorn | C19: 0 | D19: 12 | E19: 12 | F19: 0.2264150943 | I19: BOGO | M19: BOGO | Q19: BOGO | W19: BOGO | AA19: BOGO | AD19: BOGO | AH19: BOGO | AM19: BOGO | AT19: BOGO | AZ19: BOGO | BB19: BOGO | BE19: BOGO
A20: Cheer | Gain | B20: Laundry detergent | C20: 12 | D20: 0 | E20: 12 | F20: 0.2264150943 | P20: Sale | S20: Sale | X20: Sale | AD20: Sale | AH20: Sale | AL20: Sale | AP20: Sale | AT20: Sale | AW20: Sale | AX20: Sale | BC20: Sale | BD20: Sale
A21: Keebler | B21: Cookies | C21: 0 | D21: 11 | E21: 11 | F21: 0.2075471698 | H21: BOGO | K21: BOGO | L21: BOGO | S21: BOGO | U21: BOGO | W21: BOGO | AA21: BOGO | AM21: BOGO | AQ21: BOGO | AU21: BOGO | AV21: BOGO
A22: Thomas | B22: Bagels | C22: 0 | D22: 11 | E22: 11 | F22: 0.2075471698 | J22: BOGO | N22: BOGO | S22: BOGO | V22: BOGO | AB22: BOGO | AF22: BOGO | AL22: BOGO | AP22: BOGO | AS22: BOGO | AW22: BOGO | BA22: BOGO
A23: Kraft | B23: BBQ sauce | C23: 0 | D23: 11 | E23: 11 | F23: 0.2075471698 | J23: BOGO | N23: BOGO | R23: BOGO | Y23: BOGO | AD23: BOGO | AG23: BOGO | AI23: BOGO | AN23: BOGO | AR23: BOGO | AW23: BOGO | BE23: BOGO
A24: Nabisco Ritz | B24: Crackers | C24: 0 | D24: 11 | E24: 11 | F24: 0.2075471698 | I24: BOGO | O24: BOGO | R24: BOGO | AA24: BOGO | AD24: BOGO | AG24: BOGO | AM24: BOGO | AQ24: BOGO | AY24: BOGO | BC24: BOGO | BD24: BOGO
A25: Frito Lay | B25: Doritos | C25: 0 | D25: 11 | E25: 11 | F25: 0.2075471698 | J25: BOGO | N25: BOGO | R25: BOGO | X25: BOGO | AA25: BOGO | AD25: BOGO | AH25: BOGO | AJ25: BOGO | AP25: BOGO | BC25: BOGO | BD25: BOGO
A26: Smart Balance | B26: Margarine | C26: 0 | D26: 10 | E26: 10 | F26: 0.1886792453 | L26: BOGO | R26: BOGO | U26: BOGO | Y26: BOGO | AG26: BOGO | AK26: BOGO | AN26: BOGO | AU26: BOGO | AX26: BOGO | BB26: BOGO
A27: Breyer's | B27: Ice cream | C27: 0 | D27: 10 | E27: 10 | F27: 0.1886792453 | I27: BOGO | M27: BOGO | Q27: BOGO | U27: BOGO | Z27: BOGO | AC27: BOGO | AG27: BOGO | AN27: BOGO | AU27: BOGO | AY27: BOGO
A28: 7-UP, etc | B28: Soft drinks | C28: 10 | D28: 0 | E28: 10 | F28: 0.1886792453 | L28: Sale | Q28: Sale | R28: Sale | V28: Sale | AA28: Sale | AC28: Sale | AH28: Sale | AN28: Sale | AZ28: Sale | BE28: Sale
A29: Brawny | B29: Paper towels | C29: 10 | D29: 0 | E29: 10 | F29: 0.1886792453 | J29: Sale | R29: Sale | AA29: Sale | AF29: Sale | AJ29: Sale | AP29: Sale | AS29: Sale | AU29: Sale | AZ29: Sale | BE29: Sale
A30: Duncan Hines | Pillsbury | B30: Cake mix | C30: 0 | D30: 9 | E30: 9 | F30: 0.1698113208 | I30: BOGO | P30: BOGO | U30: BOGO | AC30: BOGO | AE30: BOGO | AO30: BOGO | AY30: BOGO | BC30: BOGO | BD30: BOGO
A31: Cheezit Snack Mix | B31: Crackers | C31: 0 | D31: 9 | E31: 9 | F31: 0.1698113208 | H31: BOGO | Q31: BOGO | AE31: BOGO | AK31: BOGO | AN31: BOGO | AR31: BOGO | AV31: BOGO | AZ31: BOGO | BE31: BOGO
A32: Seven Seas | B32: Salad dressing | C32: 0 | D32: 9 | E32: 9 | F32: 0.1698113208 | I32: BOGO | R32: BOGO | U32: BOGO | AE32: BOGO | AJ32: BOGO | AN32: BOGO | AW32: BOGO | BC32: BOGO | BD32: BOGO
A33: Claussen | B33: Pickles | C33: 6 | D33: 3 | E33: 9 | F33: 0.1698113208 | K33: Sale | M33: BOGO | P33: Sale | AA33: Sale | AD33: BOGO | AL33: BOGO | AP33: Sale | AZ33: Sale | BE33: Sale
A34: Heinz | B34: Ketchup | C34: 9 | D34: 0 | E34: 9 | F34: 0.1698113208 | K34: Sale | W34: Sale | X34: Sale | Z34: Sale | AE34: Sale | AN34: Sale | AX34: Sale | BC34: Sale | BD34: Sale
A35: Kraft | B35: Mac & cheese | C35: 0 | D35: 8 | E35: 8 | F35: 0.1509433962 | I35: BOGO | U35: BOGO | X35: BOGO | Z35: BOGO | AC35: BOGO | AI35: BOGO | AM35: BOGO | AO35: BOGO
A36: Del Monte | B36: Fruit cups | C36: 6 | D36: 2 | E36: 8 | F36: 0.1509433962 | P36: Sale | S36: Sale | Y36: Sale | AD36: Sale | AM36: BOGO | AO36: Sale | AU36: Sale | BA36: BOGO
A37: Wishbone | B37: Salad dressing | C37: 0 | D37: 7 | E37: 7 | F37: 0.1320754717 | M37: BOGO | T37: BOGO | Y37: BOGO | AF37: BOGO | AT37: BOGO | AY37: BOGO | BB37: BOGO
A38: Campbells | B38: Soups | C38: 0 | D38: 7 | E38: 7 | F38: 0.1320754717 | I38: BOGO | J38: BOGO | AM38: BOGO | AR38: BOGO | AT38: BOGO | AX38: BOGO | BA38: BOGO
A39: Nabisco Honey Maid | B39: Grahams | C39: 0 | D39: 7 | E39: 7 | F39: 0.1320754717 | M39: BOGO | P39: BOGO | S39: BOGO | AH39: BOGO | AP39: BOGO | AW39: BOGO | BB39: BOGO
A40: Lysol | B40: Disinfectant wipes | C40: 0 | D40: 7 | E40: 7 | F40: 0.1320754717 | K40: BOGO | R40: BOGO | AD40: BOGO | AM40: BOGO | AQ40: BOGO | AW40: BOGO | AX40: BOGO
A41: Nabisco - all other | B41: Crackers | C41: 0 | D41: 7 | E41: 7 | F41: 0.1320754717 | K41: BOGO | U41: BOGO | AB41: BOGO | AE41: BOGO | AP41: BOGO | AY41: BOGO | BE41: BOGO
A42: Duncan Hines | Pillsbury | B42: Brownie mix | C42: 0 | D42: 6 | E42: 6 | F42: 0.1132075472 | H42: BOGO | U42: BOGO | Z42: BOGO | AE42: BOGO | AQ42: BOGO | AY42: BOGO
A43: Frito Lay | B43: Ruffles | C43: 0 | D43: 6 | E43: 6 | F43: 0.1132075472 | O43: BOGO | AB43: BOGO | AM43: BOGO | AT43: BOGO | BA43: BOGO | BE43: BOGO
A44: Mrs. Paul's | B44: Fish sandwich filets | C44: 0 | D44: 6 | E44: 6 | F44: 0.1132075472 | I44: BOGO | Q44: BOGO | V44: BOGO | AA44: BOGO | AN44: BOGO | AZ44: BOGO
A45: Planters | B45: Trail mix | C45: 0 | D45: 6 | E45: 6 | F45: 0.1132075472 | G45: BOGO | W45: BOGO | AC45: BOGO | AP45: BOGO | BC45: BOGO | BD45: BOGO
A46: General Mills | B46: Chex mix | C46: 2 | D46: 4 | E46: 6 | F46: 0.1132075472 | J46: BOGO | M46: Sale | AD46: BOGO | AN46: BOGO | AV46: Sale | BE46: BOGO
A47: Smucker's | B47: Jam | C47: 4 | D47: 2 | E47: 6 | F47: 0.1132075472 | H47: BOGO | AA47: Sale | AB47: Sale | AC47: Sale | AH47: BOGO | AW47: Sale
A48: Progresso | B48: Soups | C48: 0 | D48: 5 | E48: 5 | F48: 0.09433962264 | H48: BOGO | M48: BOGO | N48: BOGO | Q48: BOGO | AP48: BOGO
A49: Crisco | Wesson | B49: Cooking oil | C49: 0 | D49: 5 | E49: 5 | F49: 0.09433962264 | I49: BOGO | U49: BOGO | AY49: BOGO | BC49: BOGO | BD49: BOGO
A50: Barilla | B50: Pasta sauce | C50: 0 | D50: 5 | E50: 5 | F50: 0.09433962264 | L50: BOGO | AA50: BOGO | AF50: BOGO | AO50: BOGO | AR50: BOGO
A51: Kraft | B51: Cheese - Velveeta | C51: 0 | D51: 5 | E51: 5 | F51: 0.09433962264 | K51: BOGO | Z51: BOGO | AE51: BOGO | AN51: BOGO | AV51: BOGO
A52: Rold Gold | Snyder's | B52: Pretzels | C52: 2 | D52: 3 | E52: 5 | F52: 0.09433962264 | L52: BOGO | T52: BOGO | AN52: BOGO | AO52: Sale | AR52: Sale
A53: Marie's | B53: Salad dressing | C53: 2 | D53: 3 | E53: 5 | F53: 0.09433962264 | V53: BOGO | AA53: BOGO | AB53: Sale | AQ53: BOGO | AR53: Sale
A54: Pepperidge Farm | B54: Crackers - fish | C54: 5 | D54: 0 | E54: 5 | F54: 0.09433962264 | S54: Sale | AE54: Sale | AJ54: Sale | AO54: Sale | AX54: Sale
A55: Perdue | B55: Chicken - short cuts | C55: 5 | D55: 0 | E55: 5 | F55: 0.09433962264 | M55: Sale | P55: Sale | T55: Sale | AC55: Sale | AG55: Sale
A56: Aunt Jemima | B56: Pancake syrup | C56: 0 | D56: 4 | E56: 4 | F56: 0.07547169811 | I56: BOGO | V56: BOGO | AA56: BOGO | AY56: BOGO
A57: Perdue | B57: Chicken - breaded | C57: 0 | D57: 4 | E57: 4 | F57: 0.07547169811 | R57: BOGO | AD57: BOGO | AQ57: BOGO | BE57: BOGO
A58: Oscar Meyer | B58: Lunchmeat - turkey ham | C58: 0 | D58: 4 | E58: 4 | F58: 0.07547169811 | O58: BOGO | V58: BOGO | AC58: BOGO | AX58: BOGO
A59: Uncle Ben's | B59: Ready rice | C59: 3 | D59: 1 | E59: 4 | F59: 0.07547169811 | N59: BOGO | AA59: Sale | AG59: Sale | AQ59: Sale
A60: Jif | B60: Peanut butter | C60: 3 | D60: 1 | E60: 4 | F60: 0.07547169811 | M60: Sale | W60: Sale | AH60: Sale | AZ60: BOGO
A61: Iams | B61: Dog food | C61: 4 | D61: 0 | E61: 4 | F61: 0.07547169811 | P61: Sale | V61: Sale | AB61: Sale | AX61: Sale
A62: Crest Pro Health | B62: Mouthwash | C62: 4 | D62: 0 | E62: 4 | F62: 0.07547169811 | AB62: Sale | AC62: Sale | AD62: Sale | AY62: Sale
A63: Planters | B63: Nuts | C63: 0 | D63: 3 | E63: 3 | F63: 0.05660377358 | H63: BOGO | O63: BOGO | U63: BOGO
A64: French's | B64: Mustard | C64: 0 | D64: 3 | E64: 3 | F64: 0.05660377358 | J64: BOGO | AE64: BOGO | AN64: BOGO
A65: Frito Lay | B65: Tostitos | C65: 0 | D65: 3 | E65: 3 | F65: 0.05660377358 | P65: BOGO | AJ65: BOGO | AX65: BOGO
A66: Publix | B66: Root Beer | C66: 2 | D66: 1 | E66: 3 | F66: 0.05660377358 | X66: Sale | AL66: BOGO | AR66: Sale
A67: Old El Paso | B67: Refried beans | C67: 3 | D67: 0 | E67: 3 | F67: 0.05660377358 | V67: Sale | AR67: Sale | BA67: Sale
A68: Jennie-O | B68: Turkey burgers | C68: 0 | D68: 2 | E68: 2 | F68: 0.03773584906 | G68: BOGO | AV68: BOGO
A69: Quaker | B69: Oatmeal - quick cook | C69: =COUNTIF(G69:BE69,"Sale") -> 0 | D69: =COUNTIF(G69:BE69,"BOGO") -> 2 | E69: =D69+C69 -> 2 | F69: =E69/$F$2 -> 0.03773584906 | AF69: BOGO | AK69: BOGO
A70: Frito Lay | B70: Cheetos | C70: 0 | D70: 2 | E70: 2 | F70: 0.03773584906 | S70: BOGO | AC70: BOGO
A71: Bush | B71: Beans | C71: 0 | D71: 2 | E71: 2 | F71: 0.03773584906 | Z71: BOGO | AE71: BOGO
A72: Milk-bone | B72: Dog biscuits | C72: 0 | D72: 2 | E72: 2 | F72: 0.03773584906 | O72: BOGO | AQ72: BOGO
A73: Dasani | B73: Water - Dasani | C73: 2 | D73: 0 | E73: 2 | F73: 0.03773584906 | M73: Sale | AD73: Sale

Sheet Sale Items History 2
A1: Notes
A3: Important: Save of a copy of this spreadsheet with another name before making significant changes
A5: Please refer to the description given on my site:
A7: Link
A9: Tip
A11: - To view the history of any variable, use the dropdown filter to limit the records showing
